Workbook

Sheet 1
A2: Согласовано: | K2: "Утверждаю"
A3: Начальник отдела образования | K3: Директор МБОУ "Олуязский лицей"
A4: исполнительного комитета | K4: __________________ Хасанов А.Г.
A5: Мамадышского муниципального района
B6: И.Н. Габдрахманов
A7: Примерное двухнедельное меню школьных завтраков для организации питания детей , с 11 и старше.С прибыванием детей до 6 часов
A8: Использован: Сборник рецептур блюд и кулинарных изделий для предприятий общетвенного питания 1993 и 1996гг.Сборник рецептур блюд и кулинарный изделий татарской нацинальной кухни 1997г.
A9: № рецепта | B9: Наименование блюд | C9: Основные компоненты | D9: Брутто | E9: Нетто | F9: Выход | G9: Белки | H9: Жиры | I9: Углеводы | J9: Ккал | K9: Всего | M9: В том числе
M10: Бюджет | O10: За счет собственной продукции | Q10: Родительский взнос плата
K11: Цена за кг | L11: Сумма | M11: Цена за кг | N11: Сумма | O11: Цена за кг | P11: Сумма | Q11: Цена за кг | R11: Сумма
A12: 1 день
A13: №10 | B13: салат из свежей капусты | C13: капуста | D13: 99.6 | E13: 79 | G13: 1.4 | I13: 3.7 | J13: 21.3 | K13: 25 | L13: =D13*K13/1000 -> 2.49 | N13: =D13*M13/1000 -> 0.00 | O13: 20.8 | P13: =D13*O13/1000 -> 2.07 | R13: =D13*Q13/1000 -> 0
C14: лук | D14: 12.5 | E14: 10 | G14: 0.14 | I14: 0.91 | J14: 4.1 | K14: 30 | L14: =D14*K14/1000 -> 0.38 | N14: =D14*M14/1000 -> 0.00 | O14: 25 | P14: =D14*O14/1000 -> 0.31 | R14: =D14*Q14/1000 -> 0
C15: морковь | D15: 12.5 | E15: 10 | G15: 0.1 | I15: 0.7 | J15: 3.4 | K15: 35 | L15: =D15*K15/1000 -> 0.44 | N15: =D15*M15/1000 -> 0.00 | O15: 25 | P15: =D15*O15/1000 -> 0.31 | R15: =D15*Q15/1000 -> 0
C16: сахар | D16: 5 | E16: 5 | I16: 4.9 | J16: 18.9 | K16: 80 | L16: =D16*K16/1000 -> 0.40 | N16: =D16*M16/1000 -> 0.00 | P16: =D16*O16/1000 -> 0.00 | Q16: 44.49 | R16: =D16*Q16/1000 -> 0.22245
C17: масло растительное | D17: 5 | E17: 5 | H17: 4.99 | J17: 44.9 | K17: 140 | L17: =D17*K17/1000 -> 0.70 | M17: 57.58 | N17: =D17*M17/1000 -> 0.29 | P17: =D17*O17/1000 -> 0.00 | Q17: 57.58 | R17: =D17*Q17/1000 -> 0.2879
C18: итого | F18: 100 | G18: =SUM(G13:G17) -> 1.64 | H18: 4.99 | I18: 10.21 | J18: 92.6 | K18: 310 | L18: 4.4025 | M18: 57.58 | N18: 0.2879 | O18: 70.8 | P18: 2.69668 | Q18: 102.07 | R18: 0.51035
A19: №610 | B19: Биточки из говядины | C19: Говядина | D19: 34 | E19: 25 | G19: 6.32 | H19: 4.08 | J19: 55.59 | K19: 440 | L19: =D19*K19/1000 -> 14.96 | N19: =D19*M19/1000 -> 0.00 | P19: =D19*O19/1000 -> 0.00 | Q19: 300.82 | R19: =D19*Q19/1000 -> 10.22788
C20: Жир-сырец | D20: 4.47 | E20: 4.47 | H20: 4.46 | J20: 40.01 | K20: 440 | L20: 1.97 | N20: 0.00 | P20: 0.00 | Q20: 300.82 | R20: 1.3446654
C21: Лук репчатый | D21: 0.6 | E21: 0.6 | G21: - | H21: - | I21: - | J21: 0.21 | K21: 30 | L21: 0.02 | N21: 0.00 | O21: 25 | P21: 0.02 | R21: 0
C22: Сухари | D22: 1 | E22: 2 | G22: 0.22 | H22: 0.02 | I22: 1.44 | J22: 6.62 | K22: 100 | L22: 0.10 | M22: 54.8 | N22: 0.05 | P22: 0.00 | R22: 0
C23: Хлеб ржанойй | D23: 7 | E23: 7 | G23: 0.57 | H23: 0.06 | I23: 0.47 | J23: 15.82 | K23: 51 | L23: 0.36 | M23: 44.98 | N23: 0.31 | P23: 0.00 | R23: 0
C24: Соль | D24: 0.6 | E24: 0.6 | G24: - | H24: - | I24: - | J24: - | K24: 16 | L24: 0.01 | M24: 9.5 | N24: 0.01 | P24: 0.00 | R24: 0
C25: Масса п/ф | E25: 50 | G25: - | I25: - | J25: - | L25: 0.00 | N25: 0.00 | P25: 0.00 | R25: 0
C26: Масло растительное | D26: 2 | E26: 2 | G26: - | H26: 1.99 | I26: - | J26: 17.98 | K26: 140 | L26: 0.28 | M26: 57.58 | N26: 0.12 | P26: 0.00 | R26: 0
F27: 41 | G27: =SUM(G19:G26) -> 7.11 | H27: 10.61 | I27: 1.91 | J27: 136.23 | K27: 1217 | L27: 17.6914 | M27: 166.86 | N27: 0.49052 | O27: 25 | P27: 0.015 | Q27: 601.64 | R27: 11.5725454
L28: =D28*K28/1000 -> 0.00 | N28: =D28*M28/1000 -> 0.00 | P28: =D28*O28/1000 -> 0.00 | R28: =D28*Q28/1000 -> 0
A29: №746 | B29: Каша гречневая | C29: Крупа гречневая | D29: 50 | G29: 5.9 | H29: 1.65 | I29: 30.95 | J29: 167.5 | K29: 100 | L29: =D29*K29/1000 -> 5.00 | M29: 27.69 | N29: =D29*M29/1000 -> 1.38 | P29: =D29*O29/1000 -> 0.00 | R29: =D29*Q29/1000 -> 0
C30: Масло сливочное | D30: 5 | G30: 0.04 | H30: 3.6 | I30: 0.06 | J30: 33.05 | K30: 530 | L30: =D30*K30/1000 -> 2.65 | M30: 447.02 | N30: =D30*M30/1000 -> 2.24 | P30: =D30*O30/1000 -> 0.00 | R30: =D30*Q30/1000 -> 0
C31: Соль | D31: 0.5 | G31: - | H31: - | K31: 16 | L31: =D31*K31/1000 -> 0.01 | M31: 9.5 | N31: =D31*M31/1000 -> 0.00 | P31: =D31*O31/1000 -> 0.00 | R31: =D31*Q31/1000 -> 0
C32: итого | F32: 100 | G32: =SUM(G29:G31) -> 5.94 | H32: 5.25 | I32: 31.01 | J32: 200.55 | K32: 646 | L32: 7.658 | M32: 484.21 | N32: 3.62435 | O32: 0 | P32: 0 | Q32: 0 | R32: 0
A33: №944 | B33: Чай с сахаром | C33: Заварка | D33: 1 | E33: 1 | G33: 0.04 | H33: - | I33: - | K33: 688 | L33: =D33*K33/1000 -> 0.69 | M33: 200 | N33: =D33*M33/1000 -> 0.20 | P33: =D33*O33/1000 -> 0.00 | R33: =D33*Q33/1000 -> 0
C34: Сахар | D34: 15 | E34: 15 | G34: 0 | I34: 14.9 | J34: 58 | K34: 80 | L34: =D34*K34/1000 -> 1.20 | M34: 44.49 | N34: =D34*M34/1000 -> 0.67 | P34: =D34*O34/1000 -> 0.00 | R34: =D34*Q34/1000 -> 0
C35: итого | F35: 200/7 | G35: =SUM(G33:G34) -> 0.04 | H35: 0 | I35: 14.9 | J35: 58 | K35: 0 | L35: 1.888 | M35: 244.49 | N35: 0.86735 | O35: 0 | P35: 0 | Q35: 0 | R35: 0
B36: хлеб | C36: хлеб | D36: 40 | F36: 40 | G36: 12.16 | H36: 1.44 | I36: 79.76 | J36: 180.8 | K36: 60 | L36: =D36*K36/1000 -> 2.40 | M36: 54.8 | N36: =D36*M36/1000 -> 2.19 | P36: =D36*O36/1000 -> 0.00 | R36: =D36*Q36/1000 -> 0
B37: Вафли | C37: Вафли | D37: 50 | E37: 50 | F37: 50 | G37: 2.15 | H37: 16.05 | I37: 32.5 | J37: 280.5 | K37: 200 | L37: =D37*K37/1000 -> 10.00 | N37: =D37*M37/1000 -> 0.00 | P37: =D37*O37/1000 -> 0.00 | Q37: 89 | R37: =D37*Q37/1000 -> 4.45
L38: =D38*K38/1000 -> 0.00 | N38: =D38*M38/1000 -> 0.00 | P38: =D38*O38/1000 -> 0.00 | R38: =D38*Q38/1000 -> 0
C39: итого | F39: 50 | G39: =SUM(G37:G38) -> 2.15 | H39: 16.05 | I39: 32.5 | J39: 280.5 | K39: 200 | L39: 10 | M39: 0 | N39: 0 | O39: 0 | P39: 0 | Q39: 89 | R39: 4.45
G40: =G18+G27+G32+G35+G36+G39 -> 29.04 | H40: 38.34 | I40: 170.29 | J40: 948.68 | K40: 2433 | L40: 44.0399 | M40: 1007.94 | N40: 7.46 | O40: 95.8 | P40: 2.71168 | Q40: 792.71 | R40: 16.53 | S40: =N40+R40 -> 24.00
A41: итого за день

Sheet 2
A1: № рецепта | B1: Наименование блюд | C1: Основные компоненты | D1: Брутто | E1: Нетто | F1: Выход | G1: Белки | H1: Жиры | I1: Углеводы | J1: Ккал | K1: Всего | M1: В том числе
M2: Бюджет | O2: За счет собственной продукции | Q2: Родительский взнос плата
K3: Цена за кг | L3: Сумма | M3: Цена за кг | N3: Сумма | O3: Цена за кг | P3: Сумма | Q3: Цена за кг | R3: Сумма
A4: №273
C7: итого | F7: 100 | G7: =SUM(G4:G6) -> 0 | H7: 0 | I7: 0 | J7: 0 | K7: 0 | L7: 0 | M7: 0 | N7: 0 | O7: 0 | P7: 0 | Q7: 0 | R7: 0
B8: каша "Дружба" | C8: рис | D8: 16.6 | E8: 16.6 | G8: 1.16 | H8: 0.16 | I8: 11.8 | J8: 52.55 | K8: 75 | L8: =D8*K8/1000 -> 1.25 | M8: 39 | N8: =D8*M8/1000 -> 0.65 | P8: =D8*O8/1000 -> 0.00 | R8: =D8*Q8/1000 -> 0
C9: пшено | D9: 18 | E9: 17.8 | G9: 2.07 | H9: 0.59 | I9: 11.96 | J9: 62.01 | K9: 51 | L9: 0.92 | M9: 49.31 | N9: 0.89 | P9: 0.00 | R9: 0
C10: молоко | D10: 72.9 | E10: 72.9 | G10: 2.03 | H10: 2.55 | I10: 3.42 | J10: 44.47 | K10: 62 | L10: 4.52 | N10: 0.00 | P10: 0.00 | Q10: 46.34 | R10: 3.378186
C11: сахар | D11: 7.5 | E11: 7.5 | I11: 7.48 | J11: 28.43 | K11: 80 | L11: 0.60 | M11: 51.92 | N11: 0.39 | P11: 0.00 | R11: 0
C12: масло сливочное | D12: 5 | G12: 0.04 | H12: 3.63 | I12: 0.13 | J12: 33.05 | K12: 530 | L12: 2.65 | N12: 0.00 | P12: 0.00 | Q12: 447.02 | R12: 2.2351
C13: Соль | D13: 1 | E13: 1 | G13: - | H13: - | I13: - | J13: - | K13: 16 | L13: 0.02 | M13: 9.5 | N13: 0.01 | P13: 0.00 | R13: 0
C14: итого | F14: 100 | G14: =SUM(G8:G13) -> 5.30 | H14: =SUM(H8:H13) -> 6.93 | I14: 34.79 | J14: 220.51 | L14: 9.95 | N14: 1.93 | P14: 0.00 | R14: 5.61
A15: №944 | B15: Какао с молоком | C15: Какао | D15: 4 | G15: 0.19 | H15: 0.14 | I15: 0.3 | K15: 271 | L15: =D15*K15/1000 -> 1.08 | N15: =D15*M15/1000 -> 0.00 | P15: =D15*O15/1000 -> 0.00 | R15: =D15*Q15/1000 -> 0
C16: Молоко | D16: 100 | G16: 2.82 | H16: 3.2 | I16: 4.73 | J16: 58 | K16: 62 | L16: =D16*K16/1000 -> 6.20 | N16: =D16*M16/1000 -> 0.00 | P16: =D16*O16/1000 -> 0.00 | Q16: 46.34 | R16: =D16*Q16/1000 -> 4.634
C17: Сахар | D17: 20 | I17: 19.96 | J17: 75.8 | K17: 80 | L17: =D17*K17/1000 -> 1.60 | M17: 44.49 | N17: =D17*M17/1000 -> 0.89 | P17: =D17*O17/1000 -> 0.00 | R17: =D17*Q17/1000 -> 0
F18: 200 | G18: =SUM(G15:G17) -> 3.01 | H18: =SUM(H15:H17) -> 3.34 | I18: =SUM(I15:I17) -> 24.99 | J18: =SUM(J15:J17) -> 133.8 | L18: =SUM(L15:L17) -> 8.884 | N18: =SUM(N15:N17) -> 0.8898 | P18: =SUM(P15:P17) -> 0 | R18: =SUM(R15:R17) -> 4.634
B19: хлеб | C19: хлеб | D19: 40 | E19: 40 | F19: 40 | H19: 1.2 | I19: 46 | J19: 167.2 | K19: 60 | L19: =D19*K19/1000 -> 2.40 | M19: 54.8 | N19: =D19*M19/1000 -> 2.19 | O19: =G19*N19/1000 -> 0.00 | P19: =D19*O19/1000 -> 0.00 | Q19: =I19*P19/1000 -> 0.00 | R19: =D19*Q19/1000 -> 0
B20: яблоко | D20: 150 | K20: 90 | L20: =D20*K20/1000 -> 13.50 | N20: =D20*M20/1000 -> 0.00 | P20: =D20*O20/1000 -> 0.00 | Q20: 59.00 | R20: =D20*Q20/1000 -> 8.85
L21: 0.00 | P21: 0.00 | R21: 0
A22: №10 | B22: ватрушки с творогом | C22: мука | D22: 37 | E22: 37 | G22: 4.0 | I22: 25.0 | J22: 121.0 | K22: 40.0 | L22: =D22*K22/1000 -> 1.48 | M22: 22.4 | N22: =D22*M22/1000 -> 0.83 | P22: =D22*O22/1000 -> 0.00 | R22: =D22*Q22/1000 -> 0
C23: сахар | D23: 2 | E23: 2 | I23: 1.9 | J23: 7.5 | K23: 80.0 | L23: 0.16 | M23: 44.5 | N23: 0.09 | P23: 0.00 | R23: 0
C24: масло сливочное | D24: 1.68 | E24: 1.68 | G24: 0.0 | H24: 1.5 | I24: 0.0 | J24: 13.2 | K24: 530.0 | L24: 0.89 | M24: 447.0 | N24: 0.75 | P24: 0.00 | R24: 0
C25: соль | D25: 0.005 | E25: 0.005 | K25: 16.0 | L25: 0.00 | M25: 9.5 | N25: 0.00 | P25: 0.00 | R25: 0
C26: дрожжи | D26: 1.1 | E26: 1.1 | K26: 400.0 | L26: 0.44 | M26: 240.0 | N26: 0.26 | P26: 0.00 | R26: 0
C27: фарш: творог | D27: 25.2 | E27: 25.2 | G27: 4.5 | H27: 0.2 | I27: 0.5 | J27: 22.1 | K27: 300.0 | L27: 7.56 | N27: 0.00 | P27: 0.00 | Q27: 278.89 | R27: 7.028028
C28: яйцо | D28: 2.4 | E28: 2.4 | G28: 0.4 | H28: 0.4 | I28: 0.0 | J28: 5.3 | K28: 137.5 | L28: 0.33 | M28: 137.5 | N28: 0.33 | P28: 0.00 | R28: 0
C29: сахар | D29: 2.4 | E29: 2.4 | I29: 0.0 | J29: 9.0 | K29: 80.0 | L29: 0.19 | M29: 44.5 | N29: 0.11 | P29: 0.00 | R29: 0
C30: Яйцо для смазки | D30: 0.025 | E30: 0.025 | K30: 137.5 | L30: 0.00 | N30: 0.00 | P30: 0.00 | R30: 0
C31: итого | F31: 75 | G31: =SUM(G22:G29) -> 9.0 | H31: =SUM(H22:H29) -> 2.0 | I31: 27.4 | J31: 178.1 | K31: =SUM(K22:K30) -> 1721.0 | L31: 11.1 | M31: 945.4 | N31: 2.4 | O31: 0.0 | P31: =SUM(P22:P30) -> 0.0 | Q31: 278.9 | R31: =SUM(R22:R30) -> 7.0
A32: итого за день | G32: =G31+G19+G18+G14 -> 17.27 | H32: =H31+H19+H18+H14 -> 13.46 | I32: =I31+I19+I18+I14 -> 133.19 | J32: =J31+J19+J18+J14 -> 699.61 | K32: =K31+K19+K18+K14 -> 1781.00 | L32: =L31+L19+L18+L14+L7 -> 32.29 | M32: 1000.20 | N32: 7.38 | O32: 0.00 | P32: 0.00 | Q32: 278.89 | R32: 26.13 | S32: =N32+R32 -> 33.51

Sheet 3
A1: № рецепта | B1: Наименование блюд | C1: Основные компоненты | D1: Брутто | E1: Нетто | F1: Выход | G1: Белки | H1: Жиры | I1: Углеводы | J1: Ккал | K1: Всего | M1: В том числе
M2: Бюджет | O2: За счет собственной продукции | Q2: Родительский взнос плата
K3: Цена за кг | L3: Сумма | M3: Цена за кг | N3: Сумма | O3: Цена за кг | P3: Сумма | Q3: Цена за кг | R3: Сумма
B4: салат свекольный | C4: Свекла | D4: 116 | G4: 1.1 | I4: 5.43 | J4: 28.9 | K4: 15.00 | L4: =D4*K4/1000 -> 1.74 | N4: =D4*M4/1000 -> 0.00 | O4: 20 | P4: =D4*O4/1000 -> 2.32 | R4: =D4*Q4/1000 -> 0
C5: Масло растительное | D5: 10 | G5: - | H5: 9.9 | J5: 89.9 | K5: 140.00 | L5: =D5*K5/1000 -> 1.40 | M5: 57.58 | N5: =D5*M5/1000 -> 0.58 | P5: =D5*O5/1000 -> 0.00 | R5: =D5*Q5/1000 -> 0
C6: Сахар | D6: 5 | G6: - | H6: 4.9 | J6: 18.9 | K6: 80.00 | L6: =D6*K6/1000 -> 0.40 | N6: =D6*M6/1000 -> 0.00 | P6: =D6*O6/1000 -> 0.00 | Q6: 44.49 | R6: =D6*Q6/1000 -> 0.22245
C7: итого | F7: 100 | G7: =SUM(G4:G6) -> 1.1 | H7: =SUM(H4:H6) -> 14.8 | I7: 5.43 | J7: 137.7 | K7: 235 | L7: 3.54 | M7: 57.58 | N7: 0.5758 | O7: 20 | P7: 2.32 | Q7: 44.49 | R7: 0.22245
A9: №746 | B9: картофельное пюре | C9: картофель | D9: 233 | E9: 150 | G9: 2 | H9: 0.4 | I9: 16.3 | J9: 80 | K9: 25 | L9: =D9*K9/1000 -> 5.83 | N9: =D9*M9/1000 -> 0.00 | O9: 20 | P9: 4.31
C10: молоко | D10: 23.7 | G10: 6.4 | H10: 0.39 | I10: 0.74 | J10: 8.2 | K10: 62 | L10: =D10*K10/1000 -> 1.47 | M10: 37.55 | N10: =D10*M10/1000 -> 0.89 | O10: 37.55 | P10: 0.89 | R10: =D10*Q10/1000 -> 0
C11: Соль | D11: 1.5 | G11: - | H11: - | I11: - | J11: - | K11: 16 | L11: =D11*K11/1000 -> 0.02 | M11: 10.06 | N11: =D11*M11/1000 -> 0.02 | O11: 10.06 | P11: 0.02 | R11: =D11*Q11/1000 -> 0
C12: Масло слив | D12: 5 | G12: 0.02 | H12: 2.5 | I12: 0.04 | J12: 23.1 | K12: 530 | L12: =D12*K12/1000 -> 2.65 | M12: 253.4 | N12: =D12*M12/1000 -> 1.27 | O12: 253.4 | P12: 1.27 | R12: =D12*Q12/1000 -> 0
C13: итого | F13: 150 | G13: =SUM(G9:G12) -> 8.42 | H13: =SUM(H9:H12) -> 3.29 | I13: 17.08 | J13: 111.3 | K13: 633 | L13: 9.9684 | M13: 301.01 | N13: 2.172025 | O13: 321.01 | P13: 6.48 | Q13: 0 | R13: 6.48
L15: =D15*K15/1000 -> 0.00 | N15: =D15*M15/1000 -> 0.00 | P15: =D15*O15/1000 -> 0.00 | R15: =D15*Q15/1000 -> 0
B16: Рыба тушеная | C16: рыбные изделия | D16: 86 | E16: 50 | G16: 27.4 | H16: 5.24 | I16: 0 | J16: 110 | K16: 170 | L16: 14.62 | N16: 0.00 | P16: 0.00 | Q16: 169.0 | R16: 14.534
C17: Масло растительное | D17: 4 | E17: 4 | H17: 5.99 | I17: 0 | J17: 53.94 | K17: 140 | L17: 0.56 | M17: 57.58 | N17: 0.23 | P17: 0.00 | R17: 0
C18: Мука пшеничная | D18: 4 | E18: 4 | G18: 0.62 | H18: 0.06 | I18: 4.13 | J18: 20.04 | K18: 40 | L18: 0.16 | M18: 22.39 | N18: 0.09 | P18: 0.00 | R18: 0
C19: Соль | D19: 1 | E19: 1 | K19: 16 | L19: 0.02 | M19: 9.5 | N19: 0.01 | P19: 0.00 | R19: 0
C20: специи | D20: 0 | E20: 0 | L20: 0.00 | N20: 0.00 | P20: 0.00 | R20: 0
F21: 50 | G21: =SUM(G16:G20) -> 28.02 | H21: =SUM(H16:H20) -> 11.29 | I21: 4.13 | J21: 183.98 | K21: 366.00 | L21: 15.36 | N21: 0.33 | P21: 0.00 | R21: 14.53
A22: 944 | B22: Чай с сахаром | C22: Заварка | D22: 1 | E22: 1 | H22: - | I22: - | J22: - | K22: 688 | L22: =D22*K22/1000 -> 0.69 | M22: 260 | N22: =D22*M22/1000 -> 0.26 | P22: =D22*O22/1000 -> 0.00 | R22: =D22*Q22/1000 -> 0
C23: Сахар | D23: 15 | E23: 15 | G23: 0 | H23: - | I23: 14.9 | J23: 56.8 | K23: 80 | L23: =D23*K23/1000 -> 1.20 | M23: 44.49 | N23: =D23*M23/1000 -> 0.67 | P23: =D23*O23/1000 -> 0.00 | R23: =D23*Q23/1000 -> 0
C24: итого | F24: 200 | G24: =SUM(G22:G23) -> 0 | H24: =SUM(H22:H23) -> 0 | I24: 14.9 | J24: 56.8 | L24: 1.888 | N24: 0.92735 | P24: 0 | R24: 0
B25: хлеб иодированный | C25: хлеб | D25: 40 | E25: 40 | F25: 40 | G25: 6.96 | H25: 1.2 | I25: 46 | J25: 167.2 | K25: 60 | L25: =D25*K25/1000 -> 2.40 | M25: 44.98 | N25: =D25*M25/1000 -> 1.80 | P25: =D25*O25/1000 -> 0.00 | R25: =D25*Q25/1000 -> 0
B26: Печенье | L26: =D26*K26/1000 -> 0.00 | N26: =D26*M26/1000 -> 0.00
C27: печенье | D27: 30 | G27: 8 | H27: 12 | I27: 67 | J27: 410 | K27: 130 | L27: =D27*K27/1000 -> 3.90 | M27: 57 | N27: =D27*M27/1000 -> 1.71
G29: =SUM(G26:G28) -> 8 | H29: =SUM(H26:H28) -> 12 | I29: =SUM(I26:I28) -> 67 | J29: =SUM(J26:J28) -> 410 | L29: =SUM(L26:L28) -> 3.90 | M29: 57.00 | N29: 1.71 | O29: 0.00 | P29: 0.00 | Q29: 0.00 | R29: 0.00
A30: Итого за день | G30: =G29+G25+G24+G21 -> 42.980 | H30: =H29+H25+H24+H21 -> 24.490 | I30: =I29+I25+I24+I21 -> 132.030 | J30: =J29+J25+J24+J21 -> 817.980 | K30: =K29+K25+K24+K21 -> 426.000 | L30: =L29+L25+L24+L21+L7 -> 27.084 | M30: 159.560 | N30: 5.34 | O30: 20.000 | P30: 2.320 | Q30: 44.490 | R30: 14.76 | S30: =N30+R30 -> 20.098

Sheet 4
A2: Использован: Сборник рецептур блюд и кулинарных изделий для предприятий общетвенного питания 1993 и 1996гг.Сборник рецнптур блюд и кулинарный изделий татарской нацинальной кухни 1997г.
A3: № рецепта | B3: Наименование блюд | C3: Основные компоненты | D3: Брутто | E3: Нетто | F3: Выход | G3: Белки | H3: Жиры | I3: Углеводы | J3: Ккал | K3: Всего | M3: В том числе
M4: Бюджет | O4: За счет собственной продукции | Q4: Родительский взнос плата
K5: Цена за кг | L5: Сумма | M5: Цена за кг | N5: Сумма | O5: Цена за кг | P5: Сумма | Q5: Цена за кг | R5: Сумма
A6: №103 | B6: Винегрет овощной | C6: картофель | D6: 30.1 | E6: 21.1 | G6: 0.4 | H6: 0.08 | I6: 3.26 | J6: 16 | K6: 25 | L6: =D6*K6/1000 -> 0.75 | N6: =D6*M6/1000 -> 0.00 | O6: 20 | P6: =D6*O6/1000 -> 0.60 | R6: =D6*Q6/1000 -> 0
C7: свекла | D7: 20 | E7: 16 | G7: 0.22 | H7: 0.03 | I7: 1.36 | J7: 4.8 | K7: 15 | L7: 0.30 | N7: 0.00 | O7: 15 | P7: 0.30 | R7: 0
C8: Морковь | D8: 12.6 | E8: 10 | G8: 0.13 | I8: 0.7 | J8: 3.4 | K8: 35 | L8: 0.44 | N8: 0.00 | O8: 25 | P8: 0.32 | R8: 0
C9: капуста | D9: 23 | E9: 15 | K9: 25 | L9: 0.58 | N9: 0.00 | O9: 23 | P9: 0.53 | R9: 0
C10: лук репчатый | D10: 17.9 | E10: 15 | G10: 0.2 | I10: 1.3 | J10: 6.1 | K10: 30 | L10: 0.54 | N10: 0.00 | O10: 25 | P10: 0.45 | R10: 0
C11: огурцы сол. | D11: 18.8 | E11: 15 | G11: 0.2 | H11: 0.03 | I11: 0.48 | J11: 3.9 | K11: 137 | L11: 2.58 | N11: 0.00 | O11: 50 | P11: 0.94 | R11: 0
C12: Масло растительное | D12: 7 | E12: 7 | H12: 9.9 | J12: 89.9 | K12: 140 | L12: 0.98 | M12: 57.58 | N12: 0.40 | P12: 0.00 | R12: 0
C13: Соль | D13: 0.5 | E13: 0.5 | G13: 12.8 | H13: 25.5 | J13: 277 | K13: 16 | L13: 0.01 | M13: 9.5 | N13: 0.00 | P13: 0.00 | R13: 0
C14: итого | F14: 100 | L14: =SUM(L6:L13) -> 6.17 | N14: =SUM(N6:N13) -> 0.41 | O14: 158.00 | P14: 3.13 | Q14: 0.00 | R14: 0.00
A15: №610 | B15: Гуляш из говядины | C15: Говядина | D15: 87 | E15: 74 | G15: 16.89 | H15: 12.9 | J15: 174.9 | K15: 440 | L15: =D15*K15/1000 -> 38.28 | N15: =D15*M15/1000 -> 0.00 | P15: =D15*O15/1000 -> 0.00 | Q15: 300.82 | R15: =D15*Q15/1000 -> 26.17134
C16: Масло растительное | D16: 5 | E16: 5 | H16: 4.99 | J16: 44.95 | K16: 140 | L16: 0.70 | M16: 57.58 | N16: 0.29 | P16: 0.00 | R16: 0
C17: Лук репчатый | D17: 18 | E17: 15 | G17: 0.21 | H17: - | I17: 1.36 | J17: 6.15 | K17: 30 | L17: 0.54 | N17: 0.00 | O17: 25 | P17: 0.45 | R17: 0
C18: Томат | D18: 12 | E18: 12 | G18: 0.43 | I18: 1.87 | J18: 9.16 | K18: 70 | L18: 0.84 | M18: 70 | N18: 0.84 | P18: 0.00 | R18: 0
C19: Или томат.паста | D19: 4.8 | E19: 4.8 | G19: 0.23 | I19: 0.97 | J19: 2.16 | K19: 70 | L19: 0.34 | M19: 70 | N19: 0.34 | P19: 0.00 | R19: 0
C20: Соль | D20: 1 | E20: 3 | G20: - | H20: - | I20: - | J20: - | K20: 16 | L20: 0.02 | M20: 9.5 | N20: 0.01 | P20: 0.00 | R20: 0
C21: Масса тушен.мяса | E21: 50 | G21: - | I21: - | J21: - | L21: 0.00 | N21: 0.00 | P21: 0.00 | R21: 0
C22: Мука | D22: 4 | E22: 4 | G22: 0.43 | H22: 0.04 | I22: 2.72 | J22: 13.08 | K22: 40 | L22: 0.16 | N22: 0.00 | P22: 0.00 | Q22: 22.39 | R22: 0.08956
F23: 50/50 | G23: =SUM(G15:G22) -> 18.19 | H23: 17.93 | I23: 6.92 | J23: 250.4 | K23: 806 | L23: 40.872 | M23: 207.08 | N23: 1.4734 | O23: 25 | P23: 0.45 | Q23: 323.21 | R23: 26.2609
A24: №746 | B24: Макароны отварные | C24: макароны | D24: 51 | G24: 3.5 | H24: 0.37 | I24: 23.6 | J24: 114.5 | K24: 50 | L24: =D24*K24/1000 -> 2.55 | M24: 26.29 | N24: =D24*M24/1000 -> 1.3 | P24: =D24*O24/1000 -> 0.00 | R24: =D24*Q24/1000 -> 0
C25: Соль | D25: 3 | G25: - | H25: - | I25: - | J25: - | K25: 16 | L25: =D25*K25/1000 -> 0.05 | M25: 9.5 | N25: =D25*M25/1000 -> 0.03 | P25: =D25*O25/1000 -> 0.00 | R25: =D25*Q25/1000 -> 0
C26: Масло слив | D26: 5 | G26: 0.02 | H26: 2.5 | I26: 0.04 | J26: 23.1 | K26: 530 | L26: =D26*K26/1000 -> 2.65 | M26: 447.82 | N26: =D26*M26/1000 -> 2.24 | P26: =D26*O26/1000 -> 0.00 | R26: =D26*Q26/1000 -> 0
C27: итого | F27: 150 | G27: =SUM(G24:G26) -> 3.52 | H27: 2.87 | I27: 23.64 | J27: 137.6 | K27: 596 | L27: 5.248 | M27: 483.61 | N27: 3.60839 | O27: 0 | P27: 0 | Q27: 0 | R27: 0
A28: №944 | B28: Чай с сахаром | C28: Заварка | D28: 1 | E28: 1 | G28: 0.04 | H28: - | I28: - | K28: 688 | L28: =D28*K28/1000 -> 0.69 | M28: 444.19 | N28: =D28*M28/1000 -> 0.44 | P28: =D28*O28/1000 -> 0.00 | R28: =D28*Q28/1000 -> 0
C29: Сахар | D29: 15 | E29: 15 | G29: 0 | I29: 14.9 | J29: 58 | K29: 80 | L29: =D29*K29/1000 -> 1.20 | M29: 51.92 | N29: =D29*M29/1000 -> 0.78 | P29: =D29*O29/1000 -> 0.00 | R29: =D29*Q29/1000 -> 0
C30: итого | F30: 200/7 | G30: =SUM(G28:G29) -> 0.04 | H30: =SUM(H28:H29) -> 0 | I30: 14.9 | J30: 58 | K30: 0 | L30: 1.888 | M30: 496.11 | N30: 1.22299 | O30: 0 | P30: 0 | Q30: 0 | R30: 0
B31: Хлеб | C31: хлеб | D31: 40 | F31: 40 | G31: 12.16 | H31: 1.44 | I31: 79.76 | J31: 180.8 | K31: 60 | L31: =D31*K31/1000 -> 2.40 | M31: 41.16 | N31: =D31*M31/1000 -> 1.65 | P31: =D31*O31/1000 -> 0.00 | R31: =D31*Q31/1000 -> 0
C33: итого | F33: 50 | G33: =SUM(G32:G32) -> 0 | H33: 0 | I33: 0 | J33: 0 | K33: 0 | L33: 0 | M33: 0 | N33: 0 | O33: 0 | P33: 0 | Q33: 0 | R33: 0
G34: =G14+G23+G27+G30+G31+G33 -> 33.91 | H34: 22.24 | I34: 125.22 | J34: 626.8 | K34: 1462 | L34: 56.58 | M34: 1227.96 | N34: 8.36 | O34: 183 | P34: 3.5835 | Q34: 323.21 | R34: 26.26 | S34: =N34+R34 -> 34.62
A35: итого за день

Sheet 5
A1: № рецепта | B1: Наименование блюд | C1: Основные компоненты | D1: Брутто | E1: Нетто | F1: Выход | G1: Белки | H1: Жиры | I1: Углеводы | J1: Ккал | K1: Всего | M1: В том числе
M2: Бюджет | O2: За счет собственной продукции | Q2: Родительский взнос плата
K3: Цена за кг | L3: Сумма | M3: Цена за кг | N3: Сумма | O3: Цена за кг | P3: Сумма | Q3: Цена за кг | R3: Сумма
B4: каша молочная рисовая | C4: рис | D4: 33.3 | E4: 33.3 | G4: 2.07 | H4: 0.59 | I4: 11.96 | J4: 62.01 | K4: 75 | L4: =D4*K4/1000 -> 2.50 | M4: 39 | N4: =D4*M4/1000 -> 1.30 | P4: =D4*O4/1000 -> 0.00 | R4: =D4*Q4/1000 -> 0 | S4: =N4+P4+R4 -> 1.30
C5: молоко | D5: 74.5 | E5: 74.5 | G5: 2.03 | H5: 2.55 | I5: 3.42 | J5: 44.47 | K5: 62 | L5: =D5*K5/1000 -> 4.62 | M5: 46.34 | N5: =D5*M5/1000 -> 3.45 | P5: =D5*O5/1000 -> 0.00 | R5: =D5*Q5/1000 -> 0 | S5: 3.45
C6: сахар | D6: 7.5 | E6: 7.5 | I6: 7.48 | J6: 28.43 | K6: 80 | L6: =D6*K6/1000 -> 0.60 | M6: 44.49 | N6: =D6*M6/1000 -> 0.33 | P6: =D6*O6/1000 -> 0.00 | R6: =D6*Q6/1000 -> 0 | S6: 0.33
C7: масло сливочное | D7: 5 | G7: 0.04 | H7: 3.63 | I7: 0.13 | J7: 33.05 | K7: 530 | L7: =D7*K7/1000 -> 2.65 | N7: =D7*M7/1000 -> 0.00 | P7: =D7*O7/1000 -> 0.00 | Q7: 447.82 | R7: =D7*Q7/1000 -> 2.2391 | S7: 2.24
C8: Соль | D8: 1 | E8: 1 | G8: - | H8: - | I8: - | J8: - | K8: 16 | L8: =D8*K8/1000 -> 0.02 | M8: 9.5 | N8: =D8*M8/1000 -> 0.01 | P8: =D8*O8/1000 -> 0.00 | R8: =D8*Q8/1000 -> 0 | S8: 0.01
C9: итого | F9: 100 | G9: =SUM(G4:G8) -> 4.14 | H9: =SUM(H4:H8) -> 6.77 | I9: =SUM(I4:I8) -> 22.99 | J9: =SUM(J4:J8) -> 167.96 | L9: =SUM(L4:L8) -> 10.38 | N9: =SUM(N4:N8) -> 5.09 | P9: =SUM(P4:P8) -> 0.00 | R9: =SUM(R4:R8) -> 2.24 | S9: 7.33
A10: №944 | B10: Кофейный напиток | C10: Кофейный напит. | D10: 4 | G10: 0.54 | H10: 2.16 | I10: 0.74 | J10: 24.42 | K10: 500 | L10: =D10*K10/1000 -> 2.00 | N10: =D10*M10/1000 -> 0.00 | P10: =D10*O10/1000 -> 0.00 | Q10: 560 | R10: =D10*Q10/1000 -> 2.24 | S10: 2.24
C11: молоко | D11: 100 | G11: 2.82 | H11: 3.2 | I11: 4.73 | J11: 58 | K11: 62 | L11: =D11*K11/1000 -> 6.20 | N11: =D11*M11/1000 -> 0.00 | P11: =D11*O11/1000 -> 0.00 | Q11: 46.34 | R11: =D11*Q11/1000 -> 4.634
C12: Сахар | D12: 11.1 | I12: 11.088 | J12: 42.67 | K12: 80 | L12: =D12*K12/1000 -> 0.89 | M12: 44.46 | N12: =D12*M12/1000 -> 0.49 | P12: =D12*O12/1000 -> 0.00 | R12: =D12*Q12/1000 -> 0 | S12: 0.49
F13: 200 | G13: =SUM(G10:G12) -> 3.36 | H13: =SUM(H10:H12) -> 5.36 | I13: =SUM(I10:I12) -> 16.558 | J13: =SUM(J10:J12) -> 125.09 | L13: =SUM(L10:L12) -> 9.088 | N13: =SUM(N10:N12) -> 0.493506 | P13: =SUM(P10:P12) -> 0 | R13: =SUM(R10:R12) -> 6.874 | S13: 7.37
B14: хлеб | C14: хлеб | D14: 40 | E14: 40 | F14: 40 | H14: 1.2 | I14: 46 | J14: 167.2 | K14: 60 | L14: =D14*K14/1000 -> 2.40 | M14: 54.8 | N14: =D14*M14/1000 -> 2.19 | O14: =G14*N14/1000 -> 0.00 | P14: =D14*O14/1000 -> 0.00 | Q14: =I14*P14/1000 -> 0.00 | R14: =D14*Q14/1000 -> 0 | S14: 2.19
B15: Сочни с творогом | C15: Мука | D15: 20 | E15: 20 | G15: 2.06 | H15: 0.22 | I15: 0.04 | J15: 66.8 | K15: 40 | L15: =D15*K15/1000 -> 0.80 | M15: 22.39 | N15: =D15*M15/1000 -> 0.45 | P15: =D15*O15/1000 -> 0.00 | R15: =D15*Q15/1000 -> 0
C16: Сахар | D16: 8 | E16: 8 | I16: 7.99 | J16: 30.32 | K16: 80 | L16: 0.64 | M16: 44.46 | N16: 0.36 | P16: 0.00 | R16: 0
C17: Масло сливочное | D17: 8 | E17: 8 | G17: 0.004 | H17: 0.66 | I17: 0.013 | J17: 5.99 | K17: 530 | L17: 4.24 | M17: 447.02 | N17: 3.58 | P17: 0.00 | R17: 0
C18: Яйцо | D18: 6.25 | E18: 6.25 | G18: 0.779 | H18: 0.63 | J18: 8.54 | K18: 137.5 | L18: 0.86 | N18: 0.00 | P18: 0.00 | Q18: 137.5 | R18: 0.859375
C19: сметана | D19: 2 | E19: 2 | G19: 0.048 | H19: 0.06 | I19: 0.082 | J19: 0.59 | K19: 170 | L19: 0.34 | M19: 46.34 | N19: 0.09 | P19: 0.00 | R19: 0
C20: соль | D20: 0.01 | E20: 0.01 | K20: 16 | L20: 0.00 | M20: 9 | N20: 0.00 | P20: 0.00 | R20: 0
C21: творог | D21: 16.5 | E21: 16.5 | G21: 2.76 | H21: 1.43 | I21: 0.33 | J21: 26.24 | K21: 300 | L21: 4.95 | N21: 0.00 | P21: 0.00 | Q21: 278.9 | R21: 4.60185
C22: Яйцо | D22: 4 | E22: 4 | G22: 0.51 | H22: 0.024 | J22: 5.46 | K22: 137.5 | L22: 0.55 | M22: 137.5 | N22: 0.55 | P22: 0.00 | R22: 0
C23: Сахар | D23: 3.5 | E23: 3.5 | F23: 55 | I23: 3.5 | J23: 13.27 | K23: 80 | L23: 0.28 | M23: 44.46 | N23: 0.16 | P23: 0.00 | R23: 0
C24: итого | F24: 75 | G24: =SUM(G15:G23) -> 6.161 | H24: 3.024 | I24: 11.955 | J24: 157.21 | K24: 1491 | L24: 12.659535 | M24: 751.17 | N24: 5.17802 | O24: 0 | P24: 0 | Q24: 416.4 | R24: 5.461225 | S24: 10.64
B25: итого за день | G25: =G20+G14+G13+G9 -> 7.50 | H25: =H20+H14+H13+H9 -> 13.33 | I25: =I20+I14+I13+I9 -> 85.55 | J25: =J20+J14+J13+J9 -> 460.25 | K25: =K20+K14+K13+K9 -> 76.00 | L25: =L24+#REF!+L13+L9 ->  | M25: =M24+#REF!+M13+M9 ->  | N25: =N24+#REF!+N13+N9 ->  | O25: =O24+#REF!+O13+O9 ->  | P25: =P24+#REF!+P13+P9 ->  | Q25: =Q24+#REF!+Q13+Q9 ->  | R25: =R24+#REF!+R13+R9 ->  | S25: =S24+#REF!+S13+S9 -> 

Sheet 6
A1: № рецепта | B1: Наименование блюд | C1: Основные компоненты | D1: Брутто | E1: Нетто | F1: Выход | G1: Белки | H1: Жиры | I1: Углеводы | J1: Ккал | K1: Всего | M1: В том числе
M2: Бюджет | O2: За счет собственной продукции | Q2: Родительский взнос плата | S2: Масса порцый обучающихся возрастных | T2: в граммах двух групп
K3: Цена за кг | L3: Сумма | M3: Цена за кг | N3: Сумма | O3: Цена за кг | P3: Сумма | Q3: Цена за кг | R3: Сумма
A4: №196 | B4: Рассольник домашний | C4: Капуста | D4: 25 | E4: 20 | G4: 0.5 | H4: 0.0 | I4: 1.1 | J4: 5.4 | K4: 25.0 | L4: =D4*K4/1000 -> 0.625 | N4: =M4*D4/1000 -> 0 | O4: 23 | P4: =D4*O4/1000 -> 0.575 | R4: =D4*Q4/1000 -> 0
C5: Картофель | D5: 100 | E5: 72 | G5: 2.0 | H5: 0.3 | I5: 12.5 | J5: 57.6 | K5: 25.0 | L5: =D5*K5/1000 -> 2.5 | N5: =M5*D5/1000 -> 0 | O5: 20 | P5: =D5*O5/1000 -> 2 | R5: =D5*Q5/1000 -> 0
C6: Морковь | D6: 13 | E6: 10 | G6: 0.2 | H6: 0.0 | I6: 0.8 | J6: 3.3 | K6: 25.0 | L6: 0.3125 | N6: 0 | O6: 25 | P6: 0.3125 | R6: 0
C7: Лук репчатый | D7: 12 | E7: 10 | G7: 0.2 | H7: 0.9 | I7: 0.8 | J7: 4.1 | K7: 30.0 | L7: 0.36 | N7: 0 | O7: 25 | P7: 0.3 | R7: 0
C8: Огурцы соленые | D8: 17 | E8: 15 | G8: 0.1 | H8: 0.0 | I8: 0.4 | J8: 2.4 | K8: 137.0 | L8: 2.2879 | N8: 0 | O8: 50 | P8: 0.835 | R8: 0
C9: Масло сливочное | D9: 5 | E9: 5 | G9: 0.0 | H9: 3.6 | I9: 0.1 | J9: 33.1 | K9: 530.0 | L9: 2.65 | M9: 447.02 | N9: 2.2351 | P9: 0 | R9: 0
C10: Бульон | D10: 0 | G10: 0.7 | H10: 0.2 | J10: 5.3 | L10: 0 | N10: 0 | P10: 0 | R10: 0
C11: Соль | D11: 1 | G11: - | H11: - | I11: - | J11: - | K11: 16.0 | L11: 0.016 | M11: 9.5 | N11: 0.0095 | P11: 0 | R11: 0
C12: Мясо | D12: 54 | E12: 41 | G12: 10.0 | H12: 6.5 | I12: - | J12: 88.3 | K12: 440.0 | L12: 23.76 | N12: 0 | P12: 0 | Q12: 300.82 | R12: 16.24428
C13: Сметана 15% ж | D13: 10 | E13: 10 | F13: 10 | G13: 0.2 | H13: 2.0 | I13: 0.3 | J13: 20.6 | K13: 170.0 | L13: 1.7 | N13: 0 | P13: 0 | Q13: 147.89 | R13: 1.4789
F14: 250/25 | G14: =SUM(G4:G13) -> 13.9 | H14: =SUM(H4:H13) -> 13.5 | I14: 16.0 | J14: 220.0 | K14: 1398.0 | L14: 34.2 | N14: 2.2 | P14: 4.0 | R14: 17.7
B15: Буккен с капустой | C15: Мука | D15: 30 | G15: 3.09 | H15: 0.33 | I15: 20.6 | J15: 100.2 | K15: 40 | L15: =D15*K15/1000 -> 1.20 | M15: 24.68 | N15: =D15*M15/1000 -> 0.74
C16: Яйцо | D16: 2.4 | E16: 2 | G16: 0.25 | H16: 0.23 | I16: 0.01 | J16: 3.14 | K16: 175 | L16: 0.42 | M16: 137.5 | N16: 0.33
C17: Молоко йодированное | D17: 12 | G17: 0.38 | H17: 1.34 | I17: 0.38 | J17: 6.96 | K17: 62 | L17: 0.74 | M17: 46.34 | N17: 0.56 | R17: =D17*Q17/1000 -> 0
C18: Сахар | D18: 9.6 | I18: 9.5 | J18: 36.3 | K18: 80 | L18: 0.77 | M18: 44.46 | N18: 0.43 | R18: =D18*Q18/1000 -> 0
C19: Дрожжи | D19: 1.2 | K19: 400 | L19: 0.48 | M19: 240 | N19: 0.29
C20: Масло сливочное | D20: 2.5 | G20: 0.02 | H20: 1.8 | I20: 0.03 | J20: 16.5 | K20: 530 | L20: 1.33 | N20: 0.00 | Q20: 447.02 | R20: =D20*Q20/1000 -> 1.11755
C21: Фарш: капуста | D21: 75 | E21: 60 | G21: 1.08 | I21: 2.7 | J21: 16.2 | K21: 25 | L21: 1.88 | N21: 0.00 | O21: 23 | P21: =D21*O21/1000 -> 1.73
C22: Лук | D22: 3.5 | E22: 2.9 | G22: 0.04 | I22: 0.26 | J22: 1.18 | K22: 35 | L22: 0.12 | N22: 0.00 | O22: 25 | P22: =D22*O22/1000 -> 0.09
C23: Соль | D23: 1 | K23: 16 | L23: 0.02 | M23: 9.5 | N23: 0.01
C24: Масло сливочное | D24: 11.9 | G24: 0.09 | I24: 0.15 | J24: 78.6 | K24: 530 | L24: 6.31 | N24: 0.00 | Q24: 447.02 | R24: =D24*Q24/1000 -> 5.319538
F25: 90 | G25: =SUM(G15:G24) -> 4.95 | H25: 3.7 | I25: 33.63 | J25: 259.08 | K25: 1893 | L25: 13.26 | N25: 2.35 | P25: 1.81 | R25: 6.44
B26: Чай с сахаром | C26: Заварка | D26: 1 | E26: 1 | G26: 0 | K26: 688 | L26: =D26*K26/1000 -> 0.69 | M26: 200 | N26: =D26*M26/1000 -> 0.20 | P26: =D26*O26/1000 -> 0.00 | R26: =D26*Q26/1000 -> 0
C27: Сахар | D27: 15 | E27: 15 | G27: =SUM(F27) -> 0 | I27: 14.9 | J27: 56.8 | K27: 80 | L27: =D27*K27/1000 -> 1.20 | M27: 44.46 | N27: =D27*M27/1000 -> 0.67 | P27: =D27*O27/1000 -> 0.00 | R27: =D27*Q27/1000 -> 0
C28: итого | F28: 200 | G28: =SUM(G26:G27) -> 0 | H28: =SUM(H26:H27) -> 0 | I28: 14.9 | J28: 56.8 | L28: 1.888 | M28: 244.46 | N28: 0.8669 | O28: 0 | P28: 0 | Q28: 0 | R28: 0
B29: хлеб | C29: хлеб | D29: 40 | E29: 40 | F29: 40 | H29: 1.2 | I29: 46 | J29: 167.2 | K29: 60 | L29: =D29*K29/1000 -> 2.40 | M29: 44.98 | N29: =D29*M29/1000 -> 1.80 | P29: =D29*O29/1000 -> 0.00 | R29: =D29*Q29/1000 -> 0
A30: итого за день | G30: =G29+G28+G25+G14 -> 18.8 | H30: 18.4 | I30: 110.6 | J30: 703.1 | K30: 3351.0 | L30: 51.8 | M30: 289.4 | N30: 7.3 | O30: 0.0 | P30: 5.8 | Q30: 0.0 | R30: 24.2 | S30: =N30+R30 -> 31.4

Sheet 7
A1: № рецепта | B1: Наименование блюд | C1: Основные компоненты | D1: Брутто | E1: Нетто | F1: Выход | G1: Белки | H1: Жиры | I1: Углеводы | J1: Ккал | K1: Всего | M1: В том числе
M2: Бюджет | O2: За счет собственной продукции | Q2: Родительский взнос плата
K3: Цена за кг | L3: Сумма | M3: Цена за кг | N3: Сумма | O3: Цена за кг | P3: Сумма | Q3: Цена за кг | R3: Сумма
A4: №29 | B4: Салат из св.капусты | C4: Капуста | D4: 99.6 | E4: 79 | G4: 1.4 | I4: 3.7 | J4: 21.3 | K4: 25 | L4: =D4*K4/1000 -> 2.49 | N4: =D4*M4/1000 -> 0.00 | O4: 23 | P4: =D4*O4/1000 -> 2.29 | R4: =D4*Q4/1000 -> 0
C5: Лук | D5: 12.5 | E5: 10 | G5: 0.14 | I5: 0.91 | J5: 4.1 | K5: 30 | L5: =D5*K5/1000 -> 0.38 | N5: =D5*M5/1000 -> 0.00 | O5: 25 | P5: =D5*O5/1000 -> 0.31 | R5: =D5*Q5/1000 -> 0
C6: Морковь | D6: 12.5 | E6: 10 | G6: 0.1 | I6: 0.7 | J6: 3.4 | K6: 35 | L6: =D6*K6/1000 -> 0.44 | N6: =D6*M6/1000 -> 0.00 | O6: 25 | P6: =D6*O6/1000 -> 0.31 | R6: =D6*Q6/1000 -> 0
C7: Сахар | D7: 5 | E7: 5 | I7: 4.9 | J7: 18.9 | K7: 80 | L7: =D7*K7/1000 -> 0.40 | M7: 44.46 | N7: =D7*M7/1000 -> 0.22 | P7: =D7*O7/1000 -> 0.00 | R7: =D7*Q7/1000 -> 0
C8: Масло растительное | D8: 5 | E8: 5 | H8: 4.99 | J8: 44.9 | K8: 140 | L8: =D8*K8/1000 -> 0.70 | M8: 57.58 | N8: =D8*M8/1000 -> 0.29 | P8: =D8*O8/1000 -> 0.00 | R8: =D8*Q8/1000 -> 0
F9: 100 | G9: =SUM(G4:G8) -> 1.64 | H9: =SUM(H4:H8) -> 4.99 | I9: =SUM(I4:I8) -> 10.21 | J9: =SUM(J4:J8) -> 92.6 | L9: =SUM(L4:L8) -> 4.40 | N9: =SUM(N4:N8) -> 0.51 | P9: =SUM(P4:P8) -> 2.92 | R9: =SUM(R4:R8) -> 0.00
A10: №326 | B10: Плов с мясом говядины | C10: мясо (говядины) | D10: 59.4 | E10: 47.4 | G10: 18.4 | H10: 11.9 | J10: 161.9 | K10: 440 | L10: =D10*K10/1000 -> 26.14 | N10: =D10*M10/1000 -> 0.00 | P10: =D10*O10/1000 -> 0.00 | Q10: 300.82 | R10: =D10*Q10/1000 -> 17.868708
C11: крупа рисовая | D11: 54 | E11: 40 | I11: 5.99 | J11: 215.2 | K11: 75 | L11: 4.05 | M11: 39 | N11: 2.11 | P11: 0.00 | R11: 0
C12: лук репчатый | D12: 10 | E12: 6 | I12: 1.04 | J12: 4.13 | K12: 30 | L12: 0.30 | N12: 0.00 | O12: 25 | P12: 0.25 | R12: 0
C13: соль | D13: 1 | E13: 1 | K13: 16 | L13: 0.02 | M13: 9.5 | N13: 0.01 | P13: 0.00 | R13: 0
C14: морковь | D14: 15 | E14: 11.4 | I14: 1.09 | J14: 5.17 | K14: 35 | L14: 0.53 | N14: 0.00 | O14: 25 | P14: 0.38 | R14: 0
C15: томат-пюре | D15: 10 | E15: 9 | G15: 0.07 | J15: 15.3 | K15: 70 | L15: 0.70 | M15: 70 | N15: 0.70 | P15: 0.00 | R15: 0
C16: масло сливочное | D16: 6 | E16: 6 | H16: 4.99 | J16: 44.85 | K16: 530 | L16: 3.18 | M16: 447.02 | N16: 2.68 | P16: 0.00 | R16: 0
C17: масса туш мяса | F17: 30 | L17: 0.00 | N17: 0.00 | P17: 0.00 | R17: 0
C18: масса гарнира | F18: 120 | L18: 0.00 | N18: 0.00 | P18: 0.00 | R18: 0
C19: итого | F19: 150 | G19: =SUM(G10:G18) -> 18.47 | H19: =SUM(H10:H18) -> 16.89 | I19: 8.12 | J19: 446.55 | L19: 34.91 | N19: 5.50 | P19: 0.63 | R19: 17.87
A20: №944 | B20: Чай с сахаром | C20: Заварка | D20: 1 | E20: 1 | I20: - | J20: - | K20: 688 | L20: =D20*K20/1000 -> 0.69 | M20: 260 | N20: =D20*M20/1000 -> 0.26 | P20: =D20*O20/1000 -> 0.00 | R20: =D20*Q20/1000 -> 0
C21: Сахар | D21: 15 | E21: 15 | I21: 14.9 | J21: 56.8 | K21: 80 | L21: =D21*K21/1000 -> 1.20 | M21: 44.49 | N21: =D21*M21/1000 -> 0.67 | P21: =D21*O21/1000 -> 0.00 | R21: =D21*Q21/1000 -> 0
F22: 200 | G22: =SUM(G20:G21) -> 0 | H22: =SUM(H20:H21) -> 0 | I22: 14.9 | J22: 56.8 | L22: 1.888 | N22: 0.92735 | P22: 0 | R22: 0
B23: хлеб | C23: хлеб | D23: 40 | E23: 40 | F23: 40 | G23: 6.96 | H23: 1.2 | I23: 46 | J23: 167.2 | K23: 60 | L23: =D23*K23/1000 -> 2.40 | M23: 44.98 | N23: =D23*M23/1000 -> 1.80 | P23: =D23*O23/1000 -> 0.00 | Q23: =I23*P23/1000 -> 0.00 | R23: =D23*Q23/1000 -> 0
A24: итого за день | G24: =G23+G22+G19+G9 -> 27.07 | H24: =H23+H22+H19+H9 -> 23.08 | I24: 79.23 | J24: 763.15 | K24: 60 | L24: 43.5975 | M24: 44.98 | N24: 8.73 | O24: 0 | P24: 3.5408 | Q24: 0 | R24: 17.87 | S24: =N24+R24 -> 26.60

Sheet 8
A1: № рецепта | B1: Наименование блюд | C1: Основные компоненты | D1: Брутто | E1: Нетто | F1: Выход | G1: Белки | H1: Жиры | I1: Углеводы | J1: Ккал | K1: Всего | M1: В том числе
M2: Бюджет | O2: За счет собственной продукции | Q2: Родительский взнос плата
K3: Цена за кг | L3: Сумма | M3: Цена за кг | N3: Сумма | O3: Цена за кг | P3: Сумма | Q3: Цена за кг | R3: Сумма
B4: Каша манная молочная | C4: маннка | D4: 33.3 | E4: 33.3 | G4: 3.4 | H4: 0.33 | I4: 22.5 | J4: 109.2 | K4: 52 | L4: =D4*K4/1000 -> 1.73 | M4: 24 | N4: =D4*M4/1000 -> 0.80 | P4: =D4*O4/1000 -> 0.00 | R4: =D4*Q4/1000 -> 0
C5: молоко | D5: 73.8 | E5: 73.8 | G5: 2.03 | H5: 2.55 | I5: 3.42 | J5: 44.47 | K5: 62 | L5: =D5*K5/1000 -> 4.58 | M5: 46.34 | N5: =D5*M5/1000 -> 3.42 | P5: =D5*O5/1000 -> 0.00 | R5: =D5*Q5/1000 -> 0
C6: сахар | D6: 7.5 | E6: 7.5 | I6: 7.48 | J6: 28.43 | K6: 80 | L6: =D6*K6/1000 -> 0.60 | M6: 44.46 | N6: =D6*M6/1000 -> 0.33 | P6: =D6*O6/1000 -> 0.00 | R6: =D6*Q6/1000 -> 0
C7: масло сливочное | D7: 5 | G7: 0.04 | H7: 3.63 | I7: 0.13 | J7: 33.05 | K7: 530 | L7: =D7*K7/1000 -> 2.65 | N7: =D7*M7/1000 -> 0.00 | P7: =D7*O7/1000 -> 0.00 | Q7: 447.02 | R7: =D7*Q7/1000 -> 2.2351
C8: Соль | D8: 1 | E8: 1 | G8: - | H8: - | I8: - | J8: - | K8: 16 | L8: =D8*K8/1000 -> 0.02 | M8: 9.5 | N8: =D8*M8/1000 -> 0.01 | P8: =D8*O8/1000 -> 0.00 | R8: =D8*Q8/1000 -> 0
C9: итого | F9: 100 | G9: =SUM(G4:G8) -> 5.47 | H9: =SUM(H4:H8) -> 6.51 | I9: =SUM(I4:I8) -> 33.53 | J9: =SUM(J4:J8) -> 215.15 | L9: =SUM(L4:L8) -> 9.57 | N9: =SUM(N4:N8) -> 4.56 | P9: =SUM(P4:P8) -> 0.00 | R9: =SUM(R4:R8) -> 2.24
A10: №944 | B10: Компот из св.яблок | C10: Яблоки | D10: 25 | E10: 22 | G10: 0.1 | H10: 0.09 | I10: 2.2 | J10: 9.9 | K10: 90 | L10: =D10*K10/1000 -> 2.25 | N10: =D10*M10/1000 -> 0.00 | P10: =D10*O10/1000 -> 0.00 | Q10: 35 | R10: =D10*Q10/1000 -> 0.875
C11: Сахар | D11: 20 | E11: 20 | I11: 19.96 | J11: 75.8 | K11: 80 | L11: =D11*K11/1000 -> 1.60 | M11: 44.46 | N11: =D11*M11/1000 -> 0.89 | P11: =D11*O11/1000 -> 0.00 | R11: =D11*Q11/1000 -> 0
F12: 200 | G12: =SUM(G10:G11) -> 0.1 | H12: =SUM(H10:H11) -> 0.09 | I12: 22.16 | J12: 85.7 | L12: 3.85 | N12: 0.8892 | P12: 0 | R12: 0.875
B13: хлеб | C13: хлеб | D13: 40 | E13: 40 | F13: 40 | H13: 1.2 | I13: 46 | J13: 167.2 | K13: 60 | L13: =D13*K13/1000 -> 2.40 | M13: 54.8 | N13: =D13*M13/1000 -> 2.19 | P13: =D13*O13/1000 -> 0.00 | Q13: =I13*P13/1000 -> 0.00 | R13: =D13*Q13/1000 -> 0
A14: №102 | B14: Запеканка рисовая с творогом | C14: творог | D14: 20 | E14: 20 | G14: 3.38 | H14: 1.87 | I14: 0.4 | J14: 32.2 | K14: 300 | L14: =D14*K14/1000 -> 6.00 | N14: =D14*M14/1000 -> 0.00 | P14: =D14*O14/1000 -> 0.00 | Q14: 278.89 | R14: =D14*Q14/1000 -> 5.5778
C15: Сахар | D15: 7.5 | E15: 7.5 | I15: 7.4 | J15: 28.4 | K15: 80 | L15: 0.60 | N15: 0.00 | P15: 0.00 | Q15: 44.46 | R15: 0.33345
C16: Масло сливочное | D16: 5 | E16: 5 | G16: 0.04 | H16: 3.36 | I16: 0.13 | J16: 33.05 | K16: 530 | L16: 2.65 | M16: 447.02 | N16: 2.24 | P16: 0.00 | R16: 0
C17: Яйцо | D17: 5 | E17: 5 | G17: 0.635 | H17: 0.575 | I17: 0.01 | J17: 7.85 | K17: 175 | L17: 0.88 | N17: 0.00 | P17: 0.00 | Q17: 137.5 | R17: 0.6875
C18: Крупа рисовая | D18: 24 | E18: 24 | G18: 1.68 | H18: 0.25 | I18: 15.18 | J18: 78.4 | K18: 75 | L18: 1.80 | N18: 0.00 | P18: 0.00 | Q18: 39 | R18: 0.936
C19: сметана | D19: 5 | E19: 5 | G19: 0.14 | H19: 1 | I19: 0.16 | J19: 10.3 | K19: 170 | L19: 0.85 | N19: 0.00 | P19: 0.00 | Q19: 147.89 | R19: 0.73945
C20: Масло слив | D20: 10 | E20: 10 | G20: 0.08 | H20: 7.25 | I20: 0.26 | J20: 66.1 | K20: 530 | L20: 5.30 | N20: 0.00 | P20: 0.00 | Q20: 447.02 | R20: 4.4702
C21: итого | F21: 60 | G21: =SUM(G14:G20) -> 5.955 | H21: =SUM(H14:H20) -> 14.305 | I21: 23.54 | J21: 256.3 | K21: 1860 | L21: 18.075 | M21: 447.02 | N21: 2.2351 | O21: 0 | P21: 0 | Q21: 1094.76 | R21: 12.7444
B22: итого за день | G22: =G19+G13+G12+G9 -> 5.71 | H22: =H19+H13+H12+H9 -> 8.80 | I22: =I19+I13+I12+I9 -> 101.85 | J22: =J19+J13+J12+J9 -> 478.35 | K22: =K19+K13+K12+K9 -> 230.00 | L22: =L21+#REF!+L12+L9 ->  | M22: =M21+#REF!+M12+M9 ->  | N22: =N21+#REF!+N12+N9 ->  | O22: =O21+#REF!+O12+O9 ->  | P22: =P21+#REF!+P12+P9 ->  | Q22: =Q21+#REF!+Q12+Q9 ->  | R22: =R21+#REF!+R12+R9 ->  | S22: =N22+R22 -> 

Sheet 9
A1: № рецепта | B1: Наименование блюд | C1: Основные компоненты | D1: Брутто | E1: Нетто | F1: Выход | G1: Белки | H1: Жиры | I1: Углеводы | J1: Ккал | K1: Всего | M1: В том числе
M2: Бюджет | O2: За счет собственной продукции | Q2: Родительский взнос плата
K3: Цена за кг | L3: Сумма | M3: Цена за кг | N3: Сумма | O3: Цена за кг | P3: Сумма | Q3: Цена за кг | R3: Сумма
A4: №273 | B4: Икра морковная | C4: Морковь | D4: 117.5 | E4: 94 | G4: 1.1 | H4: 0.8 | I4: 6.1 | J4: 29.2 | K4: 35.00 | L4: =D4*K4/1000 -> 4.11 | N4: =D4*M4/1000 -> 0.00 | O4: 25 | P4: =D4*O4/1000 -> 2.94 | R4: =D4*Q4/1000 -> 0
C5: Масло растительное | D5: 7 | G5: - | H5: 9.9 | J5: 89.9 | K5: 140.00 | L5: =D5*K5/1000 -> 0.98 | M5: 57.58 | N5: =D5*M5/1000 -> 0.40 | P5: =D5*O5/1000 -> 0.00 | R5: =D5*Q5/1000 -> 0
C6: итого | F6: 100 | G6: =SUM(G4:G5) -> 1.1 | H6: 10.7 | I6: 6.1 | J6: 119.1 | K6: 175 | L6: 5.0925 | M6: 57.58 | N6: 0.40306 | O6: 25 | P6: 2.9375 | Q6: 0 | R6: 0
B7: Курица"Охлажденная" тушеная | C7: Курица"Охлажденная" | D7: 102 | E7: 73 | G7: 28.61 | H7: 17.7 | I7: 0.55 | J7: 201.6 | K7: 200 | L7: =D7*K7/1000 -> 20.40 | N7: =D7*M7/1000 -> 0.00 | P7: =D7*O7/1000 -> 0.00 | Q7: 152.00 | R7: =D7*Q7/1000 -> 15.504
C8: Соль | D8: 2 | E8: 2 | K8: 16 | L8: =D8*K8/1000 -> 0.03 | M8: 9.5 | N8: =D8*M8/1000 -> 0.02 | P8: =D8*O8/1000 -> 0.00 | R8: =D8*Q8/1000 -> 0
C9: Масло растительное | D9: 2 | E9: 2 | H9: 0.24 | J9: 22.45 | K9: 140 | L9: =D9*K9/1000 -> 0.28 | M9: 57.58 | N9: =D9*M9/1000 -> 0.12 | P9: =D9*O9/1000 -> 0.00 | R9: =D9*Q9/1000 -> 0
F10: 50 | G10: =SUM(G7:G9) -> 28.61 | H10: =SUM(H7:H9) -> 17.94 | I10: 0.55 | J10: 224.05 | K10: 356.00 | L10: 20.71 | M10: 67.08 | N10: 0.13 | O10: 0.00 | P10: 0.00 | Q10: 152.00 | R10: 15.50
A11: №442 | B11: картофельное пюре | C11: картофель | D11: 233 | G11: 2 | H11: 0.4 | I11: 16.3 | J11: 80 | K11: 25 | L11: =D11*K11/1000 -> 5.83 | N11: =D11*M11/1000 -> 0.00 | O11: 20 | P11: =D11*O11/1000 -> 4.66 | R11: =D11*Q11/1000 -> 0
C12: молоко | D12: 23.7 | G12: 6.4 | H12: 0.39 | I12: 0.74 | J12: 8.2 | K12: 62 | L12: =D12*K12/1000 -> 1.47 | M12: 46.34 | N12: =D12*M12/1000 -> 1.10 | P12: =D12*O12/1000 -> 0.00 | R12: =D12*Q12/1000 -> 0
C13: Соль | D13: 1.5 | G13: - | H13: - | I13: - | J13: - | K13: 16 | L13: =D13*K13/1000 -> 0.02 | M13: 9.5 | N13: =D13*M13/1000 -> 0.01 | P13: =D13*O13/1000 -> 0.00 | R13: =D13*Q13/1000 -> 0
C14: Масло слив | D14: 5 | G14: 0.02 | H14: 2.5 | I14: 0.04 | J14: 23.1 | K14: 530 | L14: =D14*K14/1000 -> 2.65 | M14: 447.02 | N14: =D14*M14/1000 -> 2.24 | P14: =D14*O14/1000 -> 0.00 | R14: =D14*Q14/1000 -> 0
C15: итого | F15: 150 | G15: =SUM(G11:G14) -> 8.42 | H15: =SUM(H11:H14) -> 3.29 | I15: 17.08 | J15: 111.3 | K15: 633 | L15: 9.9684 | M15: 502.86 | N15: 3.347608 | O15: 20 | P15: 4.66 | Q15: 0 | R15: 0
A16: 944 | B16: Чай с сахаром | C16: Заварка | D16: 1 | E16: 1 | H16: - | I16: - | J16: - | K16: 688 | L16: =D16*K16/1000 -> 0.69 | M16: 200 | N16: =D16*M16/1000 -> 0.20 | P16: =D16*O16/1000 -> 0.00 | R16: =D16*Q16/1000 -> 0
C17: Сахар | D17: 15 | E17: 15 | H17: - | I17: 14.9 | J17: 56.8 | K17: 80 | L17: =D17*K17/1000 -> 1.20 | M17: 44.46 | N17: =D17*M17/1000 -> 0.67 | P17: =D17*O17/1000 -> 0.00 | R17: =D17*Q17/1000 -> 0
C18: итого | F18: 200 | G18: =SUM(G16:G17) -> 0 | H18: =SUM(H16:H17) -> 0 | I18: 14.9 | J18: 56.8 | L18: 1.888 | N18: 0.8669 | P18: 0 | R18: 0
B19: хлеб | C19: хлеб | D19: 40 | E19: 40 | F19: 40 | G19: 6.96 | H19: 1.2 | I19: 46 | J19: 167.2 | K19: 60 | L19: =D19*K19/1000 -> 2.40 | M19: 35.77 | N19: =D19*M19/1000 -> 1.43 | P19: =D19*O19/1000 -> 0.00 | R19: =D19*Q19/1000 -> 0
A20: итого за день | G20: =G6+G10+G15+G18+G19 -> 45.1 | H20: =H6+H10+H15+H18+H19 -> 33.1 | I20: 84.6 | J20: 678.5 | K20: 1224.0 | L20: 40.1 | M20: 663.3 | N20: 6.2 | O20: 45.0 | P20: 7.6 | Q20: 152.0 | R20: 15.5 | S20: =N20+R20 -> 21.7

Sheet 10
A1: № рецепта | B1: Наименование блюд | C1: Основные компоненты | D1: Брутто | E1: Нетто | F1: Выход | G1: Белки | H1: Жиры | I1: Углеводы | J1: Ккал | K1: Всего | M1: В том числе
M2: Бюджет | O2: За счет собственной продукции | Q2: Родительский взнос плата
K3: Цена за кг | L3: Сумма | M3: Цена за кг | N3: Сумма | O3: Цена за кг | P3: Сумма | Q3: Цена за кг | R3: Сумма
A4: №416 | B4: Свекла с растительным маслом | C4: свекла | D4: 116 | G4: 1.1 | I4: 5.43 | J4: 28.9 | K4: 15 | L4: =D4*K4/1000 -> 1.74 | N4: =D4*M4/1000 -> 0.00 | O4: 15 | P4: =D4*O4/1000 -> 1.74 | R4: =D4*Q4/1000 -> 0
C5: соль | D5: 0.5 | K5: 16 | L5: =D5*K5/1000 -> 0.01 | M5: 9.5 | N5: =D5*M5/1000 -> 0.00 | P5: =D5*O5/1000 -> 0.00 | R5: =D5*Q5/1000 -> 0
C6: масло растительное | D6: 10 | E6: 10 | G6: =SUM(F6) -> 0 | H6: 9.9 | J6: 89.9 | K6: 140 | L6: =D6*K6/1000 -> 1.40 | M6: 57.58 | N6: =D6*M6/1000 -> 0.58 | P6: =D6*O6/1000 -> 0.00 | R6: =D6*Q6/1000 -> 0
C7: итого | F7: 100 | G7: =SUM(G4:G6) -> 1.1 | H7: 9.9 | I7: 5.4 | J7: 118.8 | K7: 171.0 | L7: 3.1 | M7: 67.1 | N7: 0.6 | O7: 15.0 | P7: 1.7 | Q7: 0.0 | R7: 0.0
L8: =D8*K8/1000 -> 0.00 | N8: =D8*M8/1000 -> 0.00 | P8: =D8*O8/1000 -> 0.00 | R8: =D8*Q8/1000 -> 0
B9: Рыба тушеная | C9: рыбные изделия | D9: 86 | E9: 50 | G9: 27.4 | H9: 5.24 | I9: 0 | J9: 110 | K9: 170 | L9: 14.62 | N9: 0.00 | P9: 0.00 | Q9: 169.0 | R9: 14.534
C10: Масло растительное | D10: 4 | E10: 4 | H10: 5.99 | I10: 0 | J10: 53.94 | K10: 140 | L10: 0.56 | M10: 57.58 | N10: 0.23 | P10: 0.00 | R10: 0
C11: Мука пшеничная | D11: 4 | E11: 4 | G11: 0.62 | H11: 0.06 | I11: 4.13 | J11: 20.04 | K11: 40 | L11: 0.16 | M11: 22.39 | N11: 0.09 | P11: 0.00 | R11: 0
C12: Соль | D12: 1 | E12: 1 | K12: 16 | L12: 0.02 | M12: 9.5 | N12: 0.01 | P12: 0.00 | R12: 0
C13: специи | D13: 0 | E13: 0 | L13: 0.00 | N13: 0.00 | P13: 0.00 | R13: 0
F14: 50 | G14: =SUM(G9:G13) -> 28.02 | H14: =SUM(H9:H13) -> 11.29 | I14: 4.13 | J14: 183.98 | K14: 366.00 | L14: 15.36 | N14: 0.33 | P14: 0.00 | R14: 14.53
B15: Каша пшеничная | C15: Крупа пшеничная | D15: 33.3 | E15: 33.3 | G15: 5.9 | H15: 1.65 | I15: 30.95 | J15: 167.5 | K15: 42 | L15: =D15*K15/1000 -> 1.40 | M15: 19 | N15: =D15*M15/1000 -> 0.63 | P15: =D15*O15/1000 -> 0.00 | R15: =D15*Q15/1000 -> 0
C16: Масло сливочное | D16: 5 | E16: 5 | G16: 0.04 | H16: 3.6 | I16: 0.06 | J16: 33.05 | K16: 530 | L16: =D16*K16/1000 -> 2.65 | M16: 447.05 | N16: =D16*M16/1000 -> 2.24 | P16: =D16*O16/1000 -> 0.00 | R16: =D16*Q16/1000 -> 0
A17: №746 | C17: Соль | D17: 1 | E17: 1 | G17: - | H17: - | K17: 16 | L17: =D17*K17/1000 -> 0.02 | M17: 9.5 | N17: =D17*M17/1000 -> 0.01 | P17: =D17*O17/1000 -> 0.00 | R17: =D17*Q17/1000 -> 0
C18: итого | F18: 150 | G18: =SUM(G15:G17) -> 5.94 | H18: =SUM(H15:H17) -> 5.25 | I18: 31.01 | J18: 200.55 | K18: 588 | L18: 4.0646 | M18: 475.55 | N18: 2.87745 | O18: 0 | P18: 0 | Q18: 0 | R18: 0
B19: Соус томатный | C19: Бульон | D19: 50 | G19: 0.4 | H19: 1.0 | I19: 0.6 | J19: 1.9 | L19: =D19*K19/1000 -> 0 | N19: =D19*M19/1000 -> 0 | P19: =D19*O19/1000 -> 0 | R19: =D19*Q19/1000 -> 0
C20: Масло растительное | D20: 1 | H20: 1.0 | J20: 9.0 | K20: 140.0 | L20: =D20*K20/1000 -> 0.14 | M20: 57.58 | N20: =D20*M20/1000 -> 0.05758 | P20: =D20*O20/1000 -> 0 | R20: =D20*Q20/1000 -> 0
A21: №459 | C21: Мука | D21: 3 | G21: 0.3 | H21: 0.0 | I21: 1.7 | J21: 8.4 | K21: 40.0 | L21: 0.1 | M21: 22.39 | N21: 0.055975 | P21: 0 | R21: 0
C22: Томат | D22: 3 | G22: 0.2 | H22: - | I22: 0.6 | J22: 3.4 | K22: 70.0 | L22: 0.21 | M22: 70 | N22: 0.21 | P22: 0 | R22: 0
C23: Морковь | D23: 5 | E23: 4 | G23: 0.1 | H23: 0.0 | I23: 0.3 | J23: 1.3 | K23: 35.0 | L23: 0.175 | N23: 0 | O23: 25 | P23: 0.125 | R23: 0
C24: Лук репчатый | D24: 1 | E24: 1 | G24: 0.0 | H24: - | I24: 0.1 | J24: 0.4 | K24: 30.0 | L24: 0.036 | N24: 0 | O24: 25 | P24: 0.03 | R24: 0
C25: соль | D25: 0 | E25: 0 | G25: - | H25: - | I25: 0.8 | J25: 3.0 | K25: 16.0 | L25: 0.004 | M25: 9.5 | N25: 0.002375 | P25: 0 | R25: 0
G26: =SUM(G19:G25) -> 0.9 | H26: 2.0 | I26: 4.1 | J26: 27.4 | K26: 331.0 | L26: 0.7 | M26: 159.5 | N26: 0.3 | O26: 50.0 | P26: 0.2 | Q26: 0.0 | R26: 0.0
B27: Чай с сахаром | C27: Заварка | D27: 1 | E27: 1 | H27: - | I27: - | J27: - | K27: 688 | L27: =D27*K27/1000 -> 0.69 | M27: 200 | N27: =D27*M27/1000 -> 0.20 | P27: =D27*O27/1000 -> 0.00 | R27: =D27*Q27/1000 -> 0
C28: Сахар | D28: 15 | E28: 15 | G28: 0 | H28: - | I28: 14.9 | J28: 56.8 | K28: 80 | L28: =D28*K28/1000 -> 1.20 | M28: 44.46 | N28: =D28*M28/1000 -> 0.67 | P28: =D28*O28/1000 -> 0.00 | R28: =D28*Q28/1000 -> 0
A29: 944 | C29: итого | F29: 200 | G29: =SUM(G27:G28) -> 0 | H29: =SUM(H27:H28) -> 0 | I29: 14.9 | J29: 56.8 | K29: 0 | L29: 1.888 | M29: 244.46 | N29: 0.8669 | O29: 0 | P29: 0 | Q29: 0 | R29: 0
B30: хлеб иодированный | C30: хлеб | D30: 40 | E30: 40 | F30: 40 | G30: 6.96 | H30: 1.2 | I30: 46 | J30: 167.2 | K30: 60 | L30: =D30*K30/1000 -> 2.40 | M30: 54.8 | N30: =D30*M30/1000 -> 2.19 | P30: =D30*O30/1000 -> 0.00 | R30: =D30*Q30/1000 -> 0
B31: итого за день | G31: =G30+G29+G26+G18+G14+G7 -> 42.9 | H31: =H30+H29+H26+H18+H14+H7 -> 29.7 | I31: 105.6 | J31: 754.7 | K31: 1516.0 | L31: 27.5 | M31: 1001.4 | N31: 7.2 | O31: 65.0 | P31: 1.9 | Q31: 0.0 | R31: 14.5 | S31: =N31+R31 -> 21.7

Sheet 11
A1: № рецепта | B1: Наименование блюд | C1: Основные компоненты | D1: Брутто | E1: Нетто | F1: Выход | G1: Белки | H1: Жиры | I1: Углеводы | J1: Ккал | K1: Всего | M1: В том числе
M2: Бюджет | O2: За счет собственной продукции | Q2: Родительский взнос плата
K3: Цена за кг | L3: Сумма | M3: Цена за кг | N3: Сумма | O3: Цена за кг | P3: Сумма | Q3: Цена за кг | R3: Сумма
B4: Каша молочная геркулесовая | C4: Геркулес | D4: 33.3 | E4: 33.3 | G4: 3.4 | H4: 0.33 | I4: 22.5 | J4: 109.2 | K4: 53 | L4: =D4*K4/1000 -> 1.76 | M4: 19 | N4: =D4*M4/1000 -> 0.63 | P4: =D4*O4/1000 -> 0.00 | R4: =D4*Q4/1000 -> 0
C5: молоко | D5: 74.5 | E5: 74.5 | G5: 2.03 | H5: 2.55 | I5: 3.42 | J5: 44.47 | K5: 62 | L5: =D5*K5/1000 -> 4.62 | N5: =D5*M5/1000 -> 0.00 | P5: =D5*O5/1000 -> 0.00 | Q5: 46.34 | R5: =D5*Q5/1000 -> 3.45233
C6: сахар | D6: 7.5 | E6: 7.5 | I6: 7.48 | J6: 28.43 | K6: 80 | L6: =D6*K6/1000 -> 0.60 | N6: =D6*M6/1000 -> 0.00 | P6: =D6*O6/1000 -> 0.00 | Q6: 44.46 | R6: =D6*Q6/1000 -> 0.33345
C7: масло сливочное | D7: 5 | G7: 0.04 | H7: 3.63 | I7: 0.13 | J7: 33.05 | K7: 530 | L7: =D7*K7/1000 -> 2.65 | N7: =D7*M7/1000 -> 0.00 | P7: =D7*O7/1000 -> 0.00 | Q7: 447.82 | R7: =D7*Q7/1000 -> 2.2391
C8: Соль | D8: 1 | E8: 1 | G8: - | H8: - | I8: - | J8: - | K8: 16 | L8: =D8*K8/1000 -> 0.02 | M8: 9.5 | N8: =D8*M8/1000 -> 0.01 | P8: =D8*O8/1000 -> 0.00 | R8: =D8*Q8/1000 -> 0
C9: итого | F9: 100 | G9: =SUM(G4:G8) -> 5.47 | H9: =SUM(H4:H8) -> 6.51 | I9: =SUM(I4:I8) -> 33.53 | J9: =SUM(J4:J8) -> 215.15 | L9: =SUM(L4:L8) -> 9.65 | N9: =SUM(N4:N8) -> 0.64 | P9: =SUM(P4:P8) -> 0.00 | R9: =SUM(R4:R8) -> 6.02
A10: №944 | B10: Кисель | C10: Кисель | D10: 24 | G10: 1.02 | I10: 21.76 | J10: 87.14 | K10: 107 | L10: 50.00 | M10: 50 | N10: =D10*M10/1000 -> 1.20 | P10: =D10*O10/1000 -> 0.00 | R10: =D10*Q10/1000 -> 0
C11: сахар | D11: 10 | G11: 1.36 | I11: 29.02 | J11: 116.19 | K11: 80 | L11: =D11*K11/1000 -> 0.80 | N11: =D11*M11/1000 -> 0.00 | P11: =D11*O11/1000 -> 0.00 | Q11: 44.46 | R11: =D11*Q11/1000 -> 0.4446
L12: =D12*K12/1000 -> 0.00 | N12: =D12*M12/1000 -> 0.00 | P12: =D12*O12/1000 -> 0.00 | R12: =D12*Q12/1000 -> 0
F13: 200 | G13: =SUM(G10:G12) -> 2.38 | H13: =SUM(H10:H12) -> 0 | I13: =SUM(I10:I12) -> 50.78 | J13: =SUM(J10:J12) -> 203.33 | L13: =SUM(L10:L12) -> 50.8 | N13: =SUM(N10:N12) -> 1.2 | P13: =SUM(P10:P12) -> 0 | R13: =SUM(R10:R12) -> 0.4446
B14: хлеб | C14: хлеб | D14: 40 | E14: 40 | F14: 40 | H14: 1.2 | I14: 46 | J14: 167.2 | K14: 60 | L14: =D14*K14/1000 -> 2.40 | M14: 54.8 | N14: =D14*M14/1000 -> 2.19 | P14: =D14*O14/1000 -> 0.00 | R14: =D14*Q14/1000 -> 0
B15: Масло слив. | C15: масло сливочное | D15: 10 | G15: 0.08 | H15: 7.25 | I15: 0.26 | J15: 66.1 | K15: 530 | L15: =D15*K15/1000 -> 5.30 | N15: =D15*M15/1000 -> 0.00 | P15: =D15*O15/1000 -> 0.00 | Q15: 447.02 | R15: =D15*Q15/1000 -> 4.4702
B16: Сыр | C16: Сыр гол. | D16: 10 | G16: 2.26 | H16: 2.57 | J16: 33.79 | K16: 560 | L16: =D16*K16/1000 -> 5.60 | N16: =D16*M16/1000 -> 0.00 | P16: =D16*O16/1000 -> 0.00 | Q16: 471.46 | R16: =D16*Q16/1000 -> 4.7146
B17: Яйцо | C17: Яйцо | D17: 40 | G17: 5.08 | H17: 4.6 | I17: 0.28 | J17: 63 | K17: 175 | L17: =D17*K17/1000 -> 7.00 | M17: 137.5 | N17: =D17*M17/1000 -> 5.50 | P17: =D17*O17/1000 -> 0.00
C18: итого | F18: 75 | G18: =SUM(G15:G17) -> 7.42 | H18: 14.42 | I18: 0.54 | J18: 162.89 | K18: 1265 | L18: 17.9 | M18: 137.5 | N18: 5.5 | O18: 0 | P18: 0 | Q18: 918.48 | R18: 9.1848
B19: итого за день | G19: =G15+G14+G13+G9 -> 7.93 | H19: =H15+H14+H13+H9 -> 14.96 | I19: =I15+I14+I13+I9 -> 130.57 | J19: =J15+J14+J13+J9 -> 651.78 | K19: =K15+K14+K13+K9 -> 590.00 | L19: =L15+L14+L13+L9 -> 68.15 | M19: 54.80 | N19: 4.03 | O19: 0.00 | P19: 0.00 | Q19: 447.02 | R19: 10.94 | S19: =N19+R19 -> 14.97

Sheet 12
A2: № рецепта | B2: Наименование блюд | C2: Основные компоненты | D2: Брутто | E2: Нетто | F2: Выход | G2: Белки | H2: Жиры | I2: Углеводы | J2: Ккал | K2: Всего | M2: В том числе
M3: Бюджет | O3: За счет собственной продукции | Q3: Родительский взнос плата
K4: Цена за кг | L4: Сумма | M4: Цена за кг | N4: Сумма | O4: Цена за кг | P4: Сумма | Q4: Цена за кг | R4: Сумма
B5: Салат из свежей капусты | C5: капуста | D5: 99.6 | E5: 79 | G5: 1.4 | I5: 3.7 | J5: 21.3 | K5: 25 | L5: =D5*K5/1000 -> 2.49 | N5: =D5*M5/1000 -> 0.00 | O5: 17.7 | P5: =D5*O5/1000 -> 1.76 | R5: =D5*Q5/1000 -> 0
C6: лук | D6: 12.5 | E6: 10 | G6: 0.14 | I6: 0.91 | J6: 4.1 | K6: 30 | L6: =D6*K6/1000 -> 0.38 | N6: =D6*M6/1000 -> 0.00 | O6: 22.75 | P6: =D6*O6/1000 -> 0.28 | R6: =D6*Q6/1000 -> 0
C7: морковь | D7: 12.5 | E7: 10 | G7: 0.1 | I7: 0.7 | J7: 3.4 | K7: 35 | L7: =D7*K7/1000 -> 0.44 | N7: =D7*M7/1000 -> 0.00 | O7: 19.5 | P7: =D7*O7/1000 -> 0.24 | R7: =D7*Q7/1000 -> 0
C8: сахар | D8: 5 | E8: 5 | I8: 4.9 | J8: 18.9 | K8: 80 | L8: =D8*K8/1000 -> 0.40 | M8: 51.92 | N8: =D8*M8/1000 -> 0.26 | P8: =D8*O8/1000 -> 0.00 | R8: =D8*Q8/1000 -> 0
C9: масло растительное | D9: 5 | E9: 5 | H9: 4.99 | J9: 44.9 | K9: 140 | L9: =D9*K9/1000 -> 0.70 | M9: 81.88 | N9: =D9*M9/1000 -> 0.41 | P9: =D9*O9/1000 -> 0.00 | R9: =D9*Q9/1000 -> 0
C10: итого | F10: 100 | G10: =SUM(G5:G9) -> 1.64 | H10: =SUM(H5:H9) -> 4.99 | I10: 10.21 | J10: 92.6 | L10: 4.40 | N10: 0.67 | P10: 2.29 | R10: 0.00
A11: №206 | B11: Суп гороховый | C11: Картофель | D11: 67 | E11: 48 | G11: 1.3 | H11: 0.2 | I11: 8.2 | J11: 38.4 | K11: 25.0 | L11: =D11*K11/1000 -> 1.6675 | N11: =D11*M11/1000 -> 0 | O11: 18.5 | P11: =D11*O11/1000 -> 1.23395 | R11: =D11*Q11/1000 -> 0
C12: Горох лущеный | D12: 21 | E12: 20 | G12: 4.6 | H12: 0.3 | I12: 10.2 | J12: 62.8 | K12: 34.0 | L12: =D12*K12/1000 -> 0.697 | N12: =D12*M12/1000 -> 0 | O12: 28 | P12: =D12*O12/1000 -> 0.574 | R12: =D12*Q12/1000 -> 0
C13: Лук репчатый | D13: 12 | E13: 11 | G13: 0.2 | H13: 0.9 | I13: 0.8 | J13: 4.1 | K13: 30.0 | L13: 0.36 | N13: 0 | O13: 22.75 | P13: 0.273 | R13: 0
C14: Морковь | D14: 13 | E14: 11 | G14: 0.2 | H14: 0.0 | I14: 0.8 | J14: 3.4 | K14: 35.0 | L14: 0.4375 | N14: 0 | O14: 19.5 | P14: 0.24375 | R14: 0
C15: Масло сливочное | D15: 5 | E15: 5 | G15: 0.0 | H15: 3.6 | I15: 0.1 | J15: 33.1 | K15: 530.0 | L15: 2.65 | N15: 0 | P15: 0 | Q15: 253.4 | R15: 1.267
C16: Бульон | D16: 0 | E16: 0 | G16: 0.7 | H16: 0.2 | I16: - | J16: 5.0 | K16: 0.0 | L16: 0 | N16: 0 | P16: 0 | Q16: 188 | R16: 0.0329
C17: Соль | D17: 1 | G17: - | H17: - | I17: - | J17: - | K17: 16.0 | L17: 0.016 | M17: 10.06 | N17: 0.01006 | P17: 0 | R17: 0
C18: Мясо курицы | D18: 52 | E18: 36 | G18: 9.7 | H18: 6.0 | I18: 0.2 | J18: 68.5 | K18: 200.0 | L18: 10.4 | N18: 0 | P18: 0 | Q18: 132.2 | R18: 6.8744
F19: 250/25 | G19: =SUM(G11:G18) -> 16.7 | H19: =SUM(H11:H18) -> 11.3 | I19: 20.4 | J19: 215.3 | K19: 870.0 | L19: 16.2 | M19: 10.1 | N19: 0.0 | O19: 88.8 | P19: 2.3 | Q19: 573.6 | R19: 8.2
B20: Ватрушка с повидлом | C20: мука | D20: 38.74 | G20: 3.81 | H20: 0.4 | I20: 25.48 | J20: 123.6 | K20: 40.00 | L20: 1.5496 | M20: 22.39 | N20: 0.8673886 | P20: 0 | R20: 0
C21: Сахар | D21: 20 | G21: 3.81 | H21: 0.4 | I21: 25.48 | J21: 123.6 | K21: 80.00 | L21: 1.6 | M21: 44.46 | N21: 0.8892 | P21: 0 | R21: 0
C22: Масло сливочное | D22: 1.68 | G22: 0.01 | H22: 1.22 | I22: 0.04 | J22: 11.1 | K22: 530.00 | L22: 0.8904 | N22: 0 | P22: 0 | Q22: 447.02 | R22: 0.7509936
C23: Яйцо | D23: 20 | G23: 2.54 | H23: 2.3 | I23: 0.14 | J23: 31.4 | K23: 175.00 | L23: 3.5 | M23: 137.50 | N23: 2.75 | P23: 0 | R23: 0
C24: соль | D24: 0.05 | K24: 16.00 | L24: 0.0008 | M24: 9.50 | N24: 0.000475 | P24: 0 | R24: 0
C25: дрожжи | D25: 1.1 | K25: 400.00 | L25: 0.44 | M25: 240.00 | N25: 0.264 | P25: 0 | R25: 0
C26: повидло | D26: 30 | G26: 2.08 | I26: 19.59 | J26: 84.1 | K26: 157.00 | L26: 4.71 | M26: 75.00 | N26: 2.25 | P26: 0 | R26: 0
C27: масло раст. | D27: 0.25 | H27: 0.24 | J27: 2.25 | K27: 140.00 | L27: 0.035 | M27: 57.58 | N27: 0.014395 | P27: 0 | R27: 0
C28: Выход фарша | D28: 75 | G28: - | H28: - | I28: - | J28: - | L28: 0 | N28: 0 | P28: 0 | R28: 0
G29: =SUM(G20:G28) -> 12.25 | H29: 4.56 | I29: 70.73 | J29: 376.05 | K29: 1538.00 | L29: 12.73 | N29: =SUM(N20:N28) -> 7.04 | O29: 0.00 | P29: 0.00 | Q29: 447.02 | R29: 0.75
A30: 944 | B30: Чай с сахаром | C30: Заварка | D30: 1 | E30: 1 | H30: - | I30: - | J30: - | K30: 688 | L30: 0.688 | M30: 200.00 | N30: 0.2 | P30: 0 | R30: 0
C31: Сахар | D31: 15 | E31: 15 | G31: 1 | H31: - | I31: 14.9 | J31: 56.8 | K31: 80 | M31: 44.46 | N31: 0.6669 | P31: 0 | R31: 0
F32: 200 | G32: =SUM(G30:G31) -> 1 | H32: =SUM(H30:H31) -> 0 | I32: 14.9 | J32: 56.8 | K32: 0 | L32: 0.688 | M32: 244.46 | N32: 0.8669 | O32: 0 | P32: 0 | Q32: 0 | R32: 0
B33: хлеб | C33: хлеб | D33: 40 | E33: 40 | F33: 40 | H33: 1.2 | I33: 46 | J33: 167.2 | K33: 60 | L33: 2.4 | M33: 54.8 | N33: 2.192 | P33: 0 | R33: 0
B34: итого за день | G34: =G33+G32+G29+G19 -> 29.97 | H34: =H33+H32+H29+H19 -> 17.02 | I34: =I33+I32+I29+I19 -> 151.99 | J34: =J33+J32+J29+J19 -> 815.37 | K34: =K33+K32+K29+K19 -> 2468.00 | L34: =L33+L32+L29+L19+L7 -> 32.48 | M34: 309.32 | N34: 10.10 | O34: 108.25 | P34: 2.57 | Q34: 1020.62 | R34: 8.93 | S34: =N34+R34 -> 19.03

Sheet 13
A1: № рецепта | B1: Наименование блюд | C1: Основные компоненты | D1: Брутто | E1: Нетто | F1: Выход | G1: Белки | H1: Жиры | I1: Углеводы | J1: Ккал | K1: Всего | M1: В том числе
M2: Бюджет | O2: За счет собственной продукции | Q2: Родительский взнос плата
K3: Цена за кг | L3: Сумма | M3: Цена за кг | N3: Сумма | O3: Цена за кг | P3: Сумма | Q3: Цена за кг | R3: Сумма
A4: №103 | B4: Винегрет овощной | C4: картофель | D4: 30.1 | E4: 21.1 | G4: 0.4 | H4: 0.08 | I4: 3.26 | J4: 16 | K4: 20 | L4: =D4*K4/1000 -> 0.60 | N4: =D4*M4/1000 -> 0.00 | O4: 20 | P4: =D4*O4/1000 -> 0.60 | R4: =D4*Q4/1000 -> 0
C5: свекла | D5: 20 | E5: 16 | G5: 0.22 | H5: 0.03 | I5: 1.36 | J5: 4.8 | K5: 15 | L5: 0.30 | N5: 0.00 | O5: 15 | P5: 0.30 | R5: 0
C6: Морковь | D6: 12.6 | E6: 10 | G6: 0.13 | I6: 0.7 | J6: 3.4 | K6: 25 | L6: 0.32 | N6: 0.00 | O6: 25 | P6: 0.32 | R6: 0
C7: капуста | D7: 23 | E7: 15 | K7: 23 | L7: 0.53 | N7: 0.00 | O7: 23 | P7: 0.53 | R7: 0
C8: лук репчатый | D8: 17.9 | E8: 15 | G8: 0.2 | I8: 1.3 | J8: 6.1 | K8: 25 | L8: 0.45 | N8: 0.00 | O8: 25 | P8: 0.45 | R8: 0
C9: соль | D9: 0.5 | E9: 0.5 | K9: 9.5 | L9: 0.00 | M9: 9.5 | N9: 0.00 | P9: 0.00 | R9: 0
C10: огурцы сол. | D10: 19 | E10: 17 | G10: 0.2 | H10: 0.03 | I10: 0.48 | J10: 3.9 | K10: 50 | L10: 0.95 | N10: 0.00 | O10: 50 | P10: 0.95 | R10: 0
C11: Масло растительное | D11: 10 | E11: 10 | H11: 9.9 | J11: 89.9 | K11: 57.58 | L11: 0.58 | M11: 57.58 | N11: 0.58 | P11: 0.00 | R11: 0
C12: Соль | D12: 1 | E12: 1 | G12: 12.8 | H12: 25.5 | J12: 277 | K12: 9.5 | L12: 0.00 | N12: 0.00 | P12: 0.00 | R12: 0
C13: итого | F13: 100 | L13: =SUM(L4:L12) -> 3.73 | N13: =SUM(N4:N12) -> 0.58 | O13: 158.00 | P13: 3.14 | Q13: 0.00 | R13: 0.00
B14: Сосиска отварная | C14: сосиска отварная | D14: 53 | E14: 50 | F14: 50 | G14: =SUM(G12:G12) -> 12.80 | H14: =SUM(H12:H12) -> 25.50 | I14: =SUM(I12:I12) -> 0.00 | J14: =SUM(J12:J12) -> 277.00 | K14: 168.90 | L14: =D14*K14/1000 -> 8.95 | N14: =F14*M14/1000 -> 0.00 | O14: =G14*N14/1000 -> 0.00 | P14: =H14*O14/1000 -> 0.00 | Q14: 168.90 | R14: =Q14*D14/1000 -> 8.95
A15: №403 | B15: Пюре гороховое | C15: Горох | D15: 48.5 | E15: 48 | G15: 11.04 | H15: 0.77 | I15: 24 | J15: 150.72 | K15: 18 | L15: =D15*K15/1000 -> 0.87 | M15: 18 | N15: =D15*M15/1000 -> 0.87 | P15: =D15*O15/1000 -> 0.00 | R15: =D15*Q15/1000 -> 0
C16: Масло сливочное | D16: 3.5 | E16: 3.5 | G16: 0.01 | H16: 2.54 | I16: 0.03 | J16: 23.13 | K16: 447.02 | L16: =D16*K16/1000 -> 1.56 | N16: =D16*M16/1000 -> 0.00 | P16: =D16*O16/1000 -> 0.00 | Q16: 447.02 | R16: =D16*Q16/1000 -> 1.56457
C17: Соль | D17: 1 | G17: - | H17: - | I17: - | J17: - | K17: 9.5 | L17: =D17*K17/1000 -> 0.01 | M17: 9.5 | N17: =D17*M17/1000 -> 0.01 | P17: =D17*O17/1000 -> 0.00 | R17: =D17*Q17/1000 -> 0
C18: итого | F18: 100 | G18: =SUM(G15:G17) -> 11.05 | H18: =SUM(H15:H17) -> 3.31 | I18: 24.03 | J18: 173.85 | L18: 2.45 | N18: 0.88 | P18: 0.00 | R18: 1.56
B19: Чай с сахаром | C19: Заварка | D19: 1 | G19: - | H19: - | I19: - | J19: - | K19: 200 | L19: =D19*K19/1000 -> 0.20 | M19: 200 | N19: =D19*M19/1000 -> 0.20 | P19: =D19*O19/1000 -> 0.00 | R19: =D19*Q19/1000 -> 0
C20: Сахар | D20: 15 | G20: - | H20: - | I20: 14.9 | J20: 56.8 | K20: 44.46 | L20: =D20*K20/1000 -> 0.67 | M20: 44.46 | N20: =D20*M20/1000 -> 0.67 | P20: =D20*O20/1000 -> 0.00 | R20: =D20*Q20/1000 -> 0
C21: итого | F21: 200 | G21: =SUM(G19:G20) -> 0 | H21: =SUM(H19:H20) -> 0 | I21: 14.9 | J21: 56.8 | L21: 0.8669 | N21: 0.8669 | P21: 0 | R21: 0
B22: Хлеб | C22: Хлеб | D22: 40 | E22: 40 | F22: 40 | G22: 6.96 | H22: 1.2 | I22: 46 | J22: 167.2 | K22: 44.98 | L22: =D22*K22/1000 -> 1.80 | N22: =D22*M22/1000 -> 0.00 | P22: =D22*O22/1000 -> 0.00 | Q22: 44.46
B23: Сочник с творогом | C23: Мука | D23: 20 | E23: 20 | G23: 2.06 | H23: 0.22 | I23: 0.04 | J23: 66.8 | K23: 22.39 | L23: =D23*K23/1000 -> 0.45 | M23: 22.39 | N23: =D23*M23/1000 -> 0.45 | P23: =D23*O23/1000 -> 0.00 | R23: =D23*Q23/1000 -> 0
C24: Сахар | D24: 8 | E24: 8 | I24: 7.99 | J24: 30.32 | K24: 44.46 | L24: 0.36 | M24: 44.46 | N24: 0.36 | P24: 0.00 | R24: 0
C25: Масло сливочное | D25: 8 | E25: 8 | G25: 0.004 | H25: 0.66 | I25: 0.013 | J25: 5.99 | K25: 447.02 | L25: 3.58 | M25: 447.02 | N25: 3.58 | P25: 0.00 | R25: 0
C26: Яйцо | D26: 6.25 | E26: 6.25 | G26: 0.779 | H26: 0.63 | J26: 8.54 | K26: 137.5 | L26: 0.86 | N26: 0.00 | P26: 0.00 | Q26: 137.5 | R26: 0.859375
C27: сметана | D27: 2 | E27: 2 | G27: 0.048 | H27: 0.06 | I27: 0.082 | J27: 0.59 | K27: 147 | L27: 0.29 | M27: 46.34 | N27: 0.09 | P27: 0.00 | R27: 0
C28: соль | D28: 0.01 | E28: 0.01 | K28: 9 | L28: 0.00 | M28: 9 | N28: 0.00 | P28: 0.00 | R28: 0
C29: творог | D29: 16.5 | E29: 16.5 | G29: 2.76 | H29: 1.43 | I29: 0.33 | J29: 26.24 | K29: 278.9 | L29: 4.60 | N29: 0.00 | P29: 0.00 | Q29: 278.9 | R29: 4.60185
C30: Яйцо | D30: 4 | E30: 4 | G30: 0.51 | H30: 0.024 | J30: 5.46 | K30: 137.5 | L30: 0.55 | M30: 137.5 | N30: 0.55 | P30: 0.00 | R30: 0
C31: Сахар | D31: 3.5 | E31: 3.5 | F31: 55 | I31: 3.5 | J31: 13.27 | K31: 44.46 | L31: 0.16 | M31: 44.46 | N31: 0.16 | P31: 0.00 | R31: 0
C32: итого | G32: =SUM(G23:G31) -> 6.161 | H32: =SUM(H23:H31) -> 3.024 | I32: 11.955 | J32: 157.21 | K32: 1268.23 | L32: 10.840565 | M32: 751.17 | N32: 5.17802 | O32: 0 | P32: 0 | Q32: 416.4 | R32: 5.461225
A33: итого | G33: =G22+G21+G18+G14+G13+G32 -> 36.97 | H33: 33.03 | I33: 96.89 | J33: 832.06 | K33: 1482.11 | L33: 28.63 | M33: =M22+M21+M18+M14+M13+M32 -> 751.17 | N33: 7.51 | O33: 158.00 | P33: 3.14 | Q33: 629.76 | R33: 15.98 | S33: =N33+R33 -> 23.49

Sheet Лист1
A5: №102 | B5: коржики молочные | C5: Мука | D5: 40 | E5: 40 | G5: 4.12 | H5: 0.44 | I5: 27.6 | J5: 167.6 | K5: 22.39 | L5: =D5*K5/1000 -> 0.90 | N5: =D5*M5/1000 -> 0.00 | P5: =D5*O5/1000 -> 0.00 | Q5: 22.39 | R5: =D5*Q5/1000 -> 0.8956 | S5: =N5+P5+R5 -> 0.90
C6: Сахар | D6: 21.15 | E6: 21.15 | I6: 21.1 | J6: 80.16 | K6: 44.46 | L6: 0.94 | N6: 0.00 | P6: 0.00 | Q6: 44.46 | R6: 0.940329 | S6: 0.94
C7: Масло сливочное | D7: 9.6 | E7: 9.6 | G7: 0.08 | H7: 7.25 | I7: 0.26 | J7: 66.1 | K7: 447.82 | L7: 4.30 | N7: 0.00 | P7: 0.00 | Q7: 447.82 | R7: 4.299072 | S7: 4.30
C8: Яйцо | D8: 2.1 | G8: 0.26 | H8: 0.24 | I8: 0.01 | J8: 3.9 | K8: 129.8 | L8: 0.27 | N8: 0.00 | P8: 0.00 | Q8: 137.5 | R8: 0.28875 | S8: 0.29
C9: молоко | D9: 7.55 | E9: 7.55 | G9: 0.21 | H9: 0.24 | I9: 0.36 | J9: 4.37 | K9: 46.34 | L9: 0.35 | M9: 46.34 | N9: 0.35 | P9: 0.00 | R9: 0 | S9: 0.35
C10: Яйцо для смазки | D10: 0.09 | G10: 0.11 | H10: 0.1 | J10: 1.41 | K10: 129.8 | L10: 0.01 | N10: 0.00 | P10: 0.00 | Q10: 137.5 | R10: 0.012375 | S10: 0.01
C11: Масло растительное | D11: 0.25 | E11: 0.25 | H11: 0.249 | K11: 51.9 | L11: 0.01 | M11: 57.58 | N11: 0.01 | P11: 0.00 | R11: 0 | S11: 0.01
B17: №746 | C17: картофельное пюре | D17: картофель | E17: 233 | F17: 150 | H17: 2 | I17: 0.4 | J17: 16.3 | K17: 80 | L17: 18.5 | M17: =E17*L17/1000 -> 4.31 | O17: =E17*N17/1000 -> 0.00 | P17: 18.5 | Q17: =E17*P17/1000 -> 4.31 | S17: =E17*R17/1000 -> 0 | T17: =O17+Q17+S17 -> 4.31
D18: молоко | E18: 23.7 | H18: 6.4 | I18: 0.39 | J18: 0.74 | K18: 8.2 | L18: 37.55 | M18: =E18*L18/1000 -> 0.89 | N18: 37.55 | O18: =E18*N18/1000 -> 0.89 | Q18: =E18*P18/1000 -> 0.00 | S18: =E18*R18/1000 -> 0 | T18: 0.89
D19: Соль | E19: 1.5 | H19: - | I19: - | J19: - | K19: - | L19: 10.06 | M19: =E19*L19/1000 -> 0.02 | N19: 10.06 | O19: =E19*N19/1000 -> 0.02 | Q19: =E19*P19/1000 -> 0.00 | S19: =E19*R19/1000 -> 0 | T19: 0.02
D20: Масло слив | E20: 5 | H20: 0.02 | I20: 2.5 | J20: 0.04 | K20: 23.1 | L20: 253.4 | M20: =E20*L20/1000 -> 1.27 | N20: 253.4 | O20: =E20*N20/1000 -> 1.27 | Q20: =E20*P20/1000 -> 0.00 | S20: =E20*R20/1000 -> 0 | T20: 1.27
D21: итого | G21: 150 | H21: =SUM(H17:H20) -> 8.42 | I21: =SUM(I17:I20) -> 3.29 | J21: 17.08 | K21: 111.3 | L21: 319.51 | M21: 6.482525 | N21: 301.01 | O21: 2.172025 | P21: 18.5 | Q21: 4.3105 | R21: 0 | S21: 0 | T21: 6.48
L27: =D27*K27/1000 -> 0.00 | N27: =D27*M27/1000 -> 0.00 | P27: =D27*O27/1000 -> 0.00 | R27: =D27*Q27/1000 -> 0
B28: Рыба тушеная | C28: рыбные изделия | D28: 86 | E28: 50 | G28: 27.4 | H28: 5.24 | I28: 0 | J28: 110 | K28: 169 | L28: 14.53 | N28: 0.00 | P28: 0.00 | Q28: 169.0 | R28: 14.534
C29: Масло растительное | D29: 4 | E29: 4 | H29: 5.99 | I29: 0 | J29: 53.94 | K29: 51.9 | L29: 0.21 | M29: 57.58 | N29: 0.23 | P29: 0.00 | R29: 0
C30: Мука пшеничная | D30: 4 | E30: 4 | G30: 0.62 | H30: 0.06 | I30: 4.13 | J30: 20.04 | K30: 19.9 | L30: 0.08 | M30: 22.39 | N30: 0.09 | P30: 0.00 | R30: 0
C31: Соль | D31: 1 | E31: 1 | K31: 9.5 | L31: 0.01 | M31: 9.5 | N31: 0.01 | P31: 0.00 | R31: 0
C32: специи | D32: 0 | E32: 0 | L32: 0.00 | N32: 0.00 | P32: 0.00 | R32: 0
F33: 50 | G33: =SUM(G28:G32) -> 28.02 | H33: =SUM(H28:H32) -> 11.29 | I33: 4.13 | J33: 183.98 | K33: 250.30 | L33: 14.83 | N33: 0.33 | P33: 0.00 | R33: 14.53
